Workbook

Sheet Recommended Action Plan
A1: Name of the Institution : | B1: =IF('Credit Input'!C1="","",'Credit Input'!C1) -> 
A2: Reporting Base Date: | B2: ='Credit Input'!C3 -> 00:00:00
C4: Rating | D4: Zone
A5: Result of WAR MATRIX (Test-I) | B5: ='Test of Resilience'!I18 -> 20 | C5: =IF(B5>80,1,IF(B5>70,2,IF(B5>60,3,IF(B5>40,4,5)))) -> 5
A6: Result of WIR MATRIX (Test-II) | B6: ='Test of Resilience'!H26 -> 0 | C6: =IF(B6<15%,1,IF(B6<25%,2,IF(B6<45%,3,IF(B6<60%,4,5)))) -> 1
A7: WAR-WIR MATRIX | D7: WAR-WIR
A9: Risk Factors | B9: Recommended Action Plan
A10: 1. Interest Risk –Increase in Interest Rate | B10: ='Test of Resilience'!J9 -> Submission of: Three Year Capital Management Plan Ensure proper compliance of ALM Guidelines ALCO meeting minutes.
A11: 2. Credit Risk
A12: – increase in NPLs | B12: ='Test of Resilience'!J11 -> Submission of: Three Year Capital Management Plan Recovery Plan of NPL
A13: – Downward shift in all Categories | B13: ='Test of Resilience'!J12 -> Submission of: Three Year Capital Management Plan Recovery Plan of NPL
A14: – Fall in the VES | B14: ='Test of Resilience'!J13 -> Submission of: Three Year Capital Management Plan Increase Securities
A15: – Increase in NPLs’ under B/L category in 2 sectors | B15: ='Test of Resilience'!J14 -> Submission of: Three Year Capital Management Plan Credit Diversification Plan
A16: – Increase in NPLs’ due to Top large loan borrowers | B16: ='Test of Resilience'!J15 -> Submission of: Three Year Capital Management Plan
A17: 3. Equity price Risk – Fall in Stock Prices | B17: ='Test of Resilience'!J16 -> Submission of: Three Year Capital Management Plan Policy for Investment in Shares
A18: 4. Liquidity Shock | B18: ='Test of Resilience'!J17 -> Monitor strictly any downturn of performance indicators.
C29: Single Shock | D29: Scenario Total | E29: WAR | F29: Weight
B30: G | C30: 1 | D30: WAR≥ 80% | E30: Scenario 1 | F30: 0.6
B31: Y | C31: 0.8 | D31: 60%≤WAR<80% | E31: Scenario 2 | F31: 0.3
B32: R | C32: 0 | D32: WAR<60% | E32: Scenario 3 | F32: 0.1
C38: Zone | D38: Single Shock | E38: Rating | F38: Scenario Total
C39: G | D39: 1 | E39: 1 | F39: WAR≥ 80%
C40: Y | D40: 0.8 | E40: 2 | F40: 70%≤WAR<80%
E41: 3 | F41: 60%≤WAR<70%
C42: R | D42: 0 | E42: 4 | F42: 40%≤WAR<60%
E43: 5 | F43: WAR<40%
D46: WAR

Sheet Decision Model Rules
A1: Name of the Institution : | C1: =IF('Credit Input'!C1="","",'Credit Input'!C1) -> 
A2: Reporting Base Date: | C2: ='Credit Input'!C3 -> 00:00:00
D4: Rating | E4: Zone
A5: Result of WAR MATRIX (Test-I) | C5: ='Test of Resilience'!I18 -> 20 | D5: =IF(C5>80,1,IF(C5>70,2,IF(C5>60,3,IF(C5>40,4,5)))) -> 5
A6: Result of WIR MATRIX (Test-II) | C6: ='Test of Resilience'!H26 -> 0 | D6: =IF(C6<15%,1,IF(C6<25%,2,IF(C6<45%,3,IF(C6<60%,4,5)))) -> 1 | M6: 0.1 | N6: 0.11
A8: WAR-WIR MATRIX | M8: 1 | N8: 0.8 | O8: 0.6
A9: WAR-WIR Matrix | C9: WAR
C10: Green | D10: Yellow | E10: Red | M10: =#REF!*100*$M$8 ->  | N10: =#REF!*100*$N$8 ->  | O10: =M10*$O$8 -> 
A11: WIR | B11: Green | C11: =IF(AND(C5>80,C6<15%),'Credit Input'!C2,"-") -> - | D11: =IF(AND(C5>60,C5=80,C6<15%),'Credit Input'!C2,"-") -> - | E11: =IF(AND(C5<=60,C6<15%),'Credit Input'!C2,"-") -> 0 | M11: =#REF!*100*$M$8 ->  | N11: =#REF!*100*$N$8 ->  | O11: =M11*$O$8 -> 
B12: Yellow | C12: =IF(AND(C5>80,C6>=15%,C6<45%),'Credit Input'!C2,"-") -> - | D12: =IF(AND(C5>60,C5=80,C6>=15%,C6<45%),'Credit Input'!C2,"-") -> - | E12: =IF(AND(C5<=60,C6>=15%,C6<45%),'Credit Input'!C2,"-") -> - | M12: =#REF!*100*$M$8 ->  | N12: =#REF!*100*$N$8 -> 
B13: Red | C13: =IF(AND(C5>80,C6>=45%),'Credit Input'!C2,"-") -> - | D13: =IF(AND(C5>60,C5=80,C6>=45%),'Credit Input'!C2,"-") -> - | E13: =IF(AND(C5<=60,C6>=45%),'Credit Input'!C2,"-") -> - | M13: =#REF!*100*$M$8 ->  | N13: =#REF!*100*$N$8 -> 
M14: =C14*100*$M$8 -> 0 | N14: =C14*100*$N$8 -> 0 | O14: 0
M15: 0 | N15: 0 | O15: 0
M16: 0 | N16: 0 | O16: 0
M17: 0 | N17: 0 | O17: 0
M18: 0 | N18: 0 | O18: 0
M19: 0 | N19: 0
R27: =I8*0.8-34.57*0.2 -> -6.914
R28: =R27/2 -> -3.457
D39: Single Shock | E39: Scenario Total | F39: WAR | G39: Weight
C40: G | D40: 1 | E40: WAR≥ 80% | F40: Scenario 1 | G40: 0.6
C41: Y | D41: 0.8 | E41: 60%≤WAR<80% | F41: Scenario 2 | G41: 0.3
C42: R | D42: 0 | E42: WAR<60% | F42: Scenario 3 | G42: 0.1
K44: Risk Shocks in Stress Testing
K45: Risk Factors | L45: HWAR
K47: 1. Interest Risk –Increase in Interest Rate | L47: Monitor strictly any downturn of performance indicators. | M47: Three Year Capital Management Plan Ensure proper compliance of ALM Guidelines ALCO meeting minutes. | N47: Three Year Capital Management Plan Ensure proper compliance of ALM Guidelines ALCO meeting minutes.
D48: Zone | E48: Single Shock | F48: Rating | G48: Scenario Total | K48: 2. Credit Risk
D49: G | E49: 1 | F49: 1 | G49: WAR≥ 80% | K49: – increase in NPLs | L49: Monitor strictly any downturn of performance indicators. | M49: Three Year Capital Management Plan Recovery Plan of NPL | N49: Three Year Capital Management Plan Recovery Plan of NPL
D50: Y | E50: 0.8 | F50: 2 | G50: 70%≤WAR<80% | K50: – Downward shift in NPLs’ Categories | L50: Monitor strictly any downturn of performance indicators. | M50: Three Year Capital Management Plan Recovery Plan of NPL | N50: Three Year Capital Management Plan Recovery Plan of NPL
F51: 3 | G51: 60%≤WAR<70% | K51: – Downward shift in all Categories | L51: Monitor strictly any downturn of performance indicators. | M51: Three Year Capital Management Plan Recovery Plan of NPL | N51: Three Year Capital Management Plan Recovery Plan of NPL
D52: R | E52: 0 | F52: 4 | G52: 40%≤WAR<60% | K52: – Fall in the VES | L52: Monitor strictly any downturn of performance indicators. | M52: Three Year Capital Management Plan Increase Securities | N52: Three Year Capital Management Plan Increase Securities
F53: 5 | G53: WAR<40% | K53: – Increase in NPLs’ under B/L category in 2 sectors | L53: Monitor strictly any downturn of performance indicators. | M53: Three Year Capital Management Plan Credit Diversification Plan | N53: Three Year Capital Management Plan Credit Diversification Plan
K54: – Increase in NPLs’ due to Top large loan borrowers | L54: Monitor strictly any downturn of performance indicators. | M54: Three Year Capital Management Plan | N54: Three Year Capital Management Plan
K55: 3. Equity price Risk – Fall in Stock Prices | L55: Monitor strictly any downturn of performance indicators. | M55: Three Year Capital Management Plan Policy for Investment in Shares | N55: Three Year Capital Management Plan Policy for Investment in Shares
E56: WAR | K56: 4. Liquidity Shock | L56: Monitor strictly any downturn of performance indicators. | M56: Liquidity Contingency Plan Ensure proper compliance of ALM Guidelines ALCO meeting minutes. | N56: Liquidity Contingency Plan Ensure proper compliance of ALM Guidelines ALCO meeting minutes.

Sheet Test of Resilience
A1: Name of the Institution : | B1: =IF('Credit Input'!C1="","",'Credit Input'!C1) -> 
A2: Reporting Base Date: | B2: ='Credit Input'!C3 -> 00:00:00
A4: Test-I : WAR MATRIX
A5: Risk Shocks in Stress Testing
A6: Risk Factors | C6: Minor | E6: Moderate | G6: Major | I6: HWAR | J6: RAP | L6: 0.1 | M6: 0.12
C7: Zone | D7: Score | E7: Zone | F7: Score | G7: Zone | H7: Score | L7: 1 | M7: 0.8 | N7: 0.6
B8: Weight | C8: =F38 -> 0.5 | E8: =F39 -> 0.3 | G8: =F40 -> 0.2 | I8: =SUM(C8,E8,G8) -> 1
A9: 1. Interest Risk –Increase in Interest Rate | B9: 0.1 | C9: ='Summary Sheet'!B14 -> 0 | D9: =IF(C9<$L$6,0,IF(C9<$M$6,100*B9*$C$39,100*B9)) -> 0 | E9: ='Summary Sheet'!C14 -> 0 | F9: =IF(E9<$L$6,0,IF(E9<$M$6,100*B9*$C$39,100*B9)) -> 0 | G9: ='Summary Sheet'!D14 -> 0 | H9: =IF(G9<$L$6,0,IF(G9<$M$6,100*B9*$C$39,100*B9)) -> 0 | I9: =D9*$F$38+F9*$F$39+H9*$F$40 -> 0 | J9: =IF(I9<=N9,M45,IF(I9<=M9,L45,K45)) -> Submission of: Three Year Capital Management Plan Ensure proper compliance of ALM Guidelines ALCO meeting minutes. | L9: =B9*100*$L$7 -> 10 | M9: =B9*100*$M$7 -> 8 | N9: =L9*$N$7 -> 6
A10: 2. Credit Risk | B10: =SUM(B11:B15) -> 0.6 | D10: =SUM(D11:D15) -> 0 | F10: =SUM(F11:F15) -> 0 | H10: =SUM(H11:H15) -> 0 | I10: 0 | L10: 60 | M10: 48 | N10: =L10*$N$7 -> 36
A11: – increase in NPLs | B11: 0.1 | C11: ='Summary Sheet'!B22 -> 0 | D11: =IF(C11<$L$6,0,IF(C11<$M$6,100*B11*$C$39,100*B11)) -> 0 | E11: ='Summary Sheet'!C22 -> 0 | F11: =IF(E11<$L$6,0,IF(E11<$M$6,100*B11*$C$39,100*B11)) -> 0 | G11: ='Summary Sheet'!D22 -> 0 | H11: =IF(G11<$L$6,0,IF(G11<$M$6,100*B11*$C$39,100*B11)) -> 0 | I11: 0 | J11: =IF(I11<=N11,M47,IF(I11<=M11,L47,K47)) -> Submission of: Three Year Capital Management Plan Recovery Plan of NPL | L11: 10 | M11: 8 | N11: 6
A12: – Downward shift in all Categories | B12: 0.1 | C12: ='Summary Sheet'!B29 -> 0 | D12: 0 | E12: ='Summary Sheet'!C29 -> 0 | F12: 0 | G12: ='Summary Sheet'!D29 -> 0 | H12: 0 | I12: 0 | J12: =IF(I12<=N12,M48,IF(I12<=M12,L48,K48)) -> Submission of: Three Year Capital Management Plan Recovery Plan of NPL | L12: 10 | M12: 8 | N12: 6
A13: – Fall in the VES | B13: 0.05 | C13: ='Summary Sheet'!B36 -> 0 | D13: 0 | E13: ='Summary Sheet'!C36 -> 0 | F13: 0 | G13: ='Summary Sheet'!D36 -> 0 | H13: 0 | I13: 0 | J13: Submission of: Three Year Capital Management Plan Increase Securities | L13: 5 | M13: 4 | N13: 3
A14: – Increase in NPLs’ under B/L category in 2 sectors | B14: 0.15 | C14: ='Summary Sheet'!B43 -> 0 | D14: 0 | E14: ='Summary Sheet'!C43 -> 0 | F14: 0 | G14: ='Summary Sheet'!D43 -> 0 | H14: 0 | I14: 0 | J14: Submission of: Three Year Capital Management Plan Credit Diversification Plan | L14: 15 | M14: 12 | N14: 9
A15: – Increase in NPLs’ due to Top large loan borrowers | B15: 0.2 | C15: ='Summary Sheet'!B54 -> 0 | D15: 0 | E15: ='Summary Sheet'!C54 -> 0 | F15: 0 | G15: ='Summary Sheet'!D54 -> 0 | H15: 0 | I15: 0 | J15: Submission of: Three Year Capital Management Plan | L15: 20 | M15: 16 | N15: 12
A16: 3. Equity price Risk – Fall in Stock Prices | B16: 0.1 | C16: ='Summary Sheet'!B68 -> 0 | D16: 0 | E16: ='Summary Sheet'!C68 -> 0 | F16: 0 | G16: ='Summary Sheet'!D68 -> 0 | H16: 0 | I16: 0 | J16: Submission of: Three Year Capital Management Plan Policy for Investment in Shares | L16: 10 | M16: 8 | N16: 6
A17: 4. Liquidity Shock | B17: 0.2 | C17: =CONCATENATE('Summary Sheet'!B79," ","-"," ",'Summary Sheet'!B80," ","-"," ",'Summary Sheet'!B81) -> 1 - 1 - 1 | D17: =IF(SUM('Summary Sheet'!B79:B81)<2,0,IF(SUM('Summary Sheet'!B79:B81)<3,100*B17*$C$39,100*B17)) -> 20 | E17: =CONCATENATE('Summary Sheet'!C79," ","-"," ",'Summary Sheet'!C80," ","-"," ",'Summary Sheet'!C81) -> 1 - 1 - 1 | F17: =IF(SUM('Summary Sheet'!C79:C81)<2,0,IF(SUM('Summary Sheet'!C79:C81)<3,100*B17*$C$39,100*B17)) -> 20 | G17: =CONCATENATE('Summary Sheet'!D79," ","-"," ",'Summary Sheet'!D80," ","-"," ",'Summary Sheet'!D81) -> 1 - 1 - 1 | H17: =IF(SUM('Summary Sheet'!D79:D81)<2,0,IF(SUM('Summary Sheet'!D79:D81)<3,100*B17*$C$39,100*B17)) -> 20 | I17: 20 | J17: Monitor strictly any downturn of performance indicators. | L17: =B17*100*$L$7 -> 20 | M17: =B17*100*$M$7 -> 16 | N17: 12
A18: VWAR | B18: =SUM(B9,B10,B16,B17) -> 1 | C18: =SUM(D17,D16,D10,D9) -> 20 | E18: =SUM(F17,F16,F10,F9) -> 20 | G18: =SUM(H17,H16,H10,H9) -> 20 | I18: =C18*F38+E18*F39+G18*F40 -> 20
A21: Test-II : WIR MATRIX
B22: Risk Shocks in Stress Testing
B23: Risk Factors | E23: Minor | F23: Moderate | G23: Major | H23: WIR
E24: Zone | F24: Zone | G24: Zone
D25: Weight | E25: 0.5 | F25: 0.3 | G25: 0.2 | Q25: =I18*0.8-34.57*0.2 -> 9.086
B26: 1. Credit Risk shocks–Increase in NPL | E26: ='Summary Sheet'!B106 -> 0 | F26: ='Summary Sheet'!C106 -> 0 | G26: ='Summary Sheet'!D106 -> 0 | H26: =E26*E25+F26*F25+G26*G25 -> 0 | Q26: =Q25/2 -> 4.543
D29: WAR-WIR Matrix | F29: WAR
F30: Green | G30: Yellow | H30: Red
D31: WIR | E31: Green | F31: =IF(AND(I18>=80,H26<10%),'Credit Input'!C2,"-") -> - | G31: =IF(AND(I18>=60,I18<80,H26<10%),'Credit Input'!C2,"-") -> - | H31: =IF(AND(I18<60,H26<10%),'Credit Input'!C2,"-") -> 0
E32: Yellow | F32: =IF(AND(I18>=80,H26>=10%,H26<40%),'Credit Input'!C2,"-") -> - | G32: =IF(AND(I18>=60,I18<80,H26>=10%,H26>=10%,H26<40%),'Credit Input'!C2,"-") -> - | H32: =IF(AND(I18<60,H26>=10%,H26<40%),'Credit Input'!C2,"-") -> -
E33: Red | F33: =IF(AND(I18>=80,H26>=40%),'Credit Input'!C2,"-") -> - | G33: =IF(AND(I18>=60,I18<80,H26>=40%),'Credit Input'!C2,"-") -> - | H33: =IF(AND(I18<60,H26>=40%),'Credit Input'!C2,"-") -> -
C37: Single Shock | D37: Scenario Total | E37: WAR | F37: Weight
B38: G | C38: 1 | D38: WAR≥ 80% | E38: Scenario 1 | F38: 0.5
B39: Y | C39: 0.8 | D39: 60%≤WAR<80% | E39: Scenario 2 | F39: 0.3
B40: R | C40: 0 | D40: WAR<60% | E40: Scenario 3 | F40: 0.2
J42: Risk Shocks in Stress Testing
J43: Risk Factors | K43: HWAR
K44: G | L44: Y | M44: R
J45: 1. Interest Risk –Increase in Interest Rate | K45: Monitor strictly any downturn of performance indicators. | L45: Recommendation: Three Year Capital Management Plan Ensure proper compliance of ALM Guidelines ALCO meeting minutes. | M45: Submission of: Three Year Capital Management Plan Ensure proper compliance of ALM Guidelines ALCO meeting minutes.
J46: 2. Credit Risk
J47: – increase in NPLs | K47: Monitor strictly any downturn of performance indicators. | L47: Recommendation: Three Year Capital Management Plan Recovery Plan of NPL | M47: Submission of: Three Year Capital Management Plan Recovery Plan of NPL
J48: – Downward shift in all Categories | K48: Monitor strictly any downturn of performance indicators. | L48: Recommendation: Three Year Capital Management Plan Recovery Plan of NPL | M48: Submission of: Three Year Capital Management Plan Recovery Plan of NPL
J49: – Fall in the VES | K49: Monitor strictly any downturn of performance indicators. | L49: Recommendation: Three Year Capital Management Plan Increase Securities | M49: Submission of: Three Year Capital Management Plan Increase Securities
J50: – Increase in NPLs’ under B/L category in 2 sectors | K50: Monitor strictly any downturn of performance indicators. | L50: Recommendation: Three Year Capital Management Plan Credit Diversification Plan | M50: Submission of: Three Year Capital Management Plan Credit Diversification Plan
J51: – Increase in NPLs’ due to Top large loan borrowers | K51: Monitor strictly any downturn of performance indicators. | L51: Recommendation: Three Year Capital Management Plan | M51: Submission of: Three Year Capital Management Plan
J52: 3. Equity price Risk – Fall in Stock Prices | K52: Monitor strictly any downturn of performance indicators. | L52: Recommendation: Three Year Capital Management Plan Policy for Investment in Shares | M52: Submission of: Three Year Capital Management Plan Policy for Investment in Shares
J53: 4. Liquidity Shock | K53: Monitor strictly any downturn of performance indicators. | L53: Recommendation: Liquidity Contingency Plan Ensure proper compliance of ALM Guidelines ALCO meeting minutes. | M53: Submission of: Liquidity Contingency Plan Ensure proper compliance of ALM Guidelines ALCO meeting minutes.
C56: Zone | D56: Single Shock | E56: Rating | F56: Scenario Total
C57: G | D57: 1 | E57: 1 | F57: WAR≥ 80%
C58: Y | D58: 0.8 | E58: 2 | F58: 70%≤WAR<80%
E59: 3 | F59: 60%≤WAR<70%
C60: R | D60: 0 | E60: 4 | F60: 40%≤WAR<60%
E61: 5 | F61: WAR<40%
D64: WAR

Sheet Summary Sheet
A1: Name of the Institution : | B1: =IF('Credit Input'!C1="","",'Credit Input'!C1) -> 
A2: Reporting Base Date: | B2: ='Credit Input'!C3 -> 00:00:00
A3: Current Scenario
A4: Regulatory Capital (BDT in Crore ) | B4: ='Credit Input'!C8 -> 0
A5: Risk Weigheted Assets (RWA) (BDT in Crore) | B5: ='Credit Input'!C9 -> 0
A6: Capital Adequacy Ratio (CAR) | B6: =IF(B5<>0,B4/B5,0) -> 0
A8: 1. Interest Rate Risk | D8: (BDT in Crore)
A9: Interest Rate Risk
A10: Magnitude of Shock | B10: Minor | C10: Moderate | D10: Major
B11: 0.02 | C11: 0.04 | D11: 0.06
A12: Revised Capital | B12: ='Interest Rate Output'!B19 -> 0 | C12: ='Interest Rate Output'!C19 -> 0 | D12: ='Interest Rate Output'!D19 -> 0
A13: Revised RWA | B13: ='Interest Rate Output'!B20 -> 0 | C13: ='Interest Rate Output'!C20 -> 0 | D13: ='Interest Rate Output'!D20 -> 0
A14: Revised CAR | B14: ='Interest Rate Output'!B21 -> 0 | C14: ='Interest Rate Output'!C21 -> 0 | D14: ='Interest Rate Output'!D21 -> 0 | F14: =B14*100 -> 0
A16: 2. Credit Risk
A17: CR-1: Credit Risk-Increase in NPL (UC Directly Downgraded to BL)
A18: Magnitude of Shock | B18: Minor | C18: Moderate | D18: Major
B19: ='Credit Input'!C56 -> 0.02 | C19: ='Credit Input'!D56 -> 0.05 | D19: ='Credit Input'!E56 -> 0.1
A20: Revised Capital | B20: ='Credit Risk-1'!B30 -> 0 | C20: ='Credit Risk-1'!C30 -> 0 | D20: ='Credit Risk-1'!D30 -> 0
A21: Revised RWA | B21: ='Credit Risk-1'!B31 -> 0 | C21: ='Credit Risk-1'!C31 -> 0 | D21: ='Credit Risk-1'!D31 -> 0
A22: Revised CAR | B22: ='Credit Risk-1'!B32 -> 0 | C22: ='Credit Risk-1'!C32 -> 0 | D22: ='Credit Risk-1'!D32 -> 0
A24: CR-2: Credit Risk-Downward Shift in Loans (STD to SMA, SMA to SS, SS to DF & DF to BL)
A25: Magnitude of Shock | B25: Minor | C25: Moderate | D25: Major
B26: ='Credit Input'!F56 -> 0.05 | C26: ='Credit Input'!G56 -> 0.1 | D26: ='Credit Input'!H56 -> 0.15
A27: Revised Capital | B27: ='Credit Risk-2'!B22 -> 0 | C27: ='Credit Risk-2'!C22 -> 0 | D27: ='Credit Risk-2'!D22 -> 0
A28: Revised RWA | B28: ='Credit Risk-2'!B23 -> 0 | C28: ='Credit Risk-2'!C23 -> 0 | D28: ='Credit Risk-2'!D23 -> 0
A29: Revised CAR | B29: ='Credit Risk-2'!B24 -> 0 | C29: ='Credit Risk-2'!C24 -> 0 | D29: ='Credit Risk-2'!D24 -> 0
A31: CR-3: Credit Risk-Fall in the Value of Eligible Securities
A32: Magnitude of Shock | B32: Minor | C32: Moderate | D32: Major
B33: ='Credit Input'!I56 -> 0.1 | C33: ='Credit Input'!J56 -> 0.25 | D33: ='Credit Input'!K56 -> 0.5
A34: Revised Capital | B34: ='Credit Risk-3'!B18 -> 0 | C34: ='Credit Risk-3'!C18 -> 0 | D34: ='Credit Risk-3'!D18 -> 0
A35: Revised RWA | B35: ='Credit Risk-3'!B19 -> 0 | C35: ='Credit Risk-3'!C19 -> 0 | D35: ='Credit Risk-3'!D19 -> 0
A36: Revised CAR | B36: ='Credit Risk-3'!B20 -> 0 | C36: ='Credit Risk-3'!C20 -> 0 | D36: ='Credit Risk-3'!D20 -> 0
A38: =CONCATENATE("CR-4: Credit Risk-Increase of NPLs in the", " ",VLOOKUP(22,'Credit Input'!$AB$17:$AT$38,2,FALSE)," ","Sector"," ","&"," ","in the"," ",VLOOKUP(21,'Credit Input'!$AB$17:$AT$38,2,FALSE)," ","Sector") -> CR-4: Credit Risk-Increase of NPLs in the Trade and Commerce Sector & in the Garments and Knitwear Sector
A39: Magnitude of Shock | B39: Minor | C39: Moderate | D39: Major
B40: ='Credit Input'!L56 -> 0.05 | C40: ='Credit Input'!M56 -> 0.1 | D40: ='Credit Input'!N56 -> 0.15
A41: Revised Capital | B41: ='Credit Risk-4'!B30 -> 0 | C41: ='Credit Risk-4'!C30 -> 0 | D41: ='Credit Risk-4'!D30 -> 0
A42: Revised RWA | B42: ='Credit Risk-4'!B31 -> 0 | C42: ='Credit Risk-4'!C31 -> 0 | D42: ='Credit Risk-4'!D31 -> 0
A43: Revised CAR | B43: ='Credit Risk-4'!B32 -> 0 | C43: ='Credit Risk-4'!C32 -> 0 | D43: ='Credit Risk-4'!D32 -> 0
A47: Signature | D47: Signature
A48: Head Of Risk Management | D48: Managing Director
A49: CR-5: Credit Risk-Increase of NPLs Due to Top 10 Borrowers
A50: Magnitude of Shock | B50: Minor | C50: Moderate | D50: Major
B51: =CONCATENATE("Top"," ",'Credit Input'!O56," "," ","Borrowers") -> Top 3 Borrowers | C51: =CONCATENATE("Top"," ",'Credit Input'!P56," "," ","Borrowers") -> Top 5 Borrowers | D51: =CONCATENATE("Top"," ",'Credit Input'!Q56," "," ","Borrowers") -> Top 10 Borrowers
A52: Revised Capital | B52: ='Credit Risk-5'!B33 -> 0 | C52: ='Credit Risk-5'!C33 -> 0 | D52: ='Credit Risk-5'!D33 -> 0
A53: Revised RWA | B53: ='Credit Risk-5'!B34 -> 0 | C53: ='Credit Risk-5'!C34 -> 0 | D53: ='Credit Risk-5'!D34 -> 0
A54: Revised CAR | B54: ='Credit Risk-5'!B35 -> 0 | C54: ='Credit Risk-5'!C35 -> 0 | D54: ='Credit Risk-5'!D35 -> 0
A56: Combined Shocks (All of the Credit Shocks)
A57: Magnitude of Shock | B57: Minor | C57: Moderate | D57: Major
A58: Revised Capital | B58: =$B$4-('Credit Risk-1'!B29+'Credit Risk-2'!B21+'Credit Risk-3'!B17+'Credit Risk-4'!B29+'Credit Risk-5'!B32) -> 0 | C58: =$B$4-('Credit Risk-1'!C29+'Credit Risk-2'!C21+'Credit Risk-3'!C17+'Credit Risk-4'!C29+'Credit Risk-5'!C32) -> 0 | D58: =$B$4-('Credit Risk-1'!D29+'Credit Risk-2'!D21+'Credit Risk-3'!D17+'Credit Risk-5'!D32) -> 0
A59: Revised RWA | B59: =$B$5-('Credit Risk-1'!B29+'Credit Risk-2'!B21+'Credit Risk-3'!B17+'Credit Risk-4'!B29+'Credit Risk-5'!B32) -> 0 | C59: =$B$5-('Credit Risk-1'!C29+'Credit Risk-2'!C21+'Credit Risk-3'!C17+'Credit Risk-4'!C29+'Credit Risk-5'!C32) -> 0 | D59: =$B$5-('Credit Risk-1'!D29+'Credit Risk-2'!D21+'Credit Risk-3'!D17+'Credit Risk-4'!D29+'Credit Risk-5'!D32) -> 0
A60: Revised CAR | B60: =IF(B59<>0,B58/B59,0) -> 0 | C60: =IF(C59<>0,C58/C59,0) -> 0 | D60: =IF(D59<>0,D58/D59,0) -> 0
A62: 3. Equity Price Risk
A63: Equity Price Risk
A64: Magnitude of Shock | B64: Minor | C64: Moderate | D64: Major
B65: ='Credit Input'!R56 -> 0.1 | C65: ='Credit Input'!S56 -> 0.25 | D65: ='Credit Input'!T56 -> 0.5
A66: Revised Capital | B66: ='Share Risks'!B14 -> 0 | C66: ='Share Risks'!C14 -> 0 | D66: ='Share Risks'!D14 -> 0
A67: Revised RWA | B67: ='Share Risks'!B15 -> 0 | C67: ='Share Risks'!C15 -> 0 | D67: ='Share Risks'!D15 -> 0
A68: Revised CAR | B68: ='Share Risks'!B16 -> 0 | C68: ='Share Risks'!C16 -> 0 | D68: ='Share Risks'!D16 -> 0
A70: 4. Liquidity Risk
A71: Current Scenario ( 1 = Satisfactory, 0 = Unsatisfactory)
A72: Negative gap during 1-90 days time buckets | B72: =IF('Liquidity Output'!B11<-15%,0,IF('Liquidity Output'!C11<-15%,0,IF('Liquidity Output'!D11<-15%,0,1))) -> 1 | D72: 1 = Satisfactory
A73: Cumulative gap up to 1 year | B73: =IF('Liquidity Output'!F13>15%,0,IF('Liquidity Output'!F13<-15%,0,1)) -> 1 | D73: 0 = Unsatisfactory
A74: Counter balancing capacity up to 1 year | B74: =IF('Liquidity Output'!B12<0,0,IF('Liquidity Output'!C12<0,0,IF('Liquidity Output'!D12<0,0,IF('Liquidity Output'!E12<0,0,IF('Liquidity Output'!F12<0,0,1))))) -> 1
A76: Liquidity Risk
A77: Magnitude of Shock | B77: Minor | C77: Moderate | D77: Major
B78: ='Liquidity Input'!B110 -> 0.05 | C78: ='Liquidity Input'!C110 -> 0.07 | D78: ='Liquidity Input'!D110 -> 0.1
A79: Negative gap during 1-90 days time buckets | B79: =IF('Liquidity Output'!$B$19<-15%,0,IF('Liquidity Output'!$C$19<-15%,0,IF('Liquidity Output'!$D$19<-15%,0,1))) -> 1 | C79: =IF('Liquidity Output'!$B$27<-15%,0,IF('Liquidity Output'!$C$27<-15%,0,IF('Liquidity Output'!$D$27<-15%,0,1))) -> 1 | D79: =IF('Liquidity Output'!$B$35<-15%,0,IF('Liquidity Output'!$C$35<-15%,0,IF('Liquidity Output'!$D$35<-15%,0,1))) -> 1
A80: Cumulative gap up to 1 year | B80: =IF('Liquidity Output'!$F$21>15%,0,IF('Liquidity Output'!$F$21<-15%,0,1)) -> 1 | C80: =IF('Liquidity Output'!$F$29>15%,0,IF('Liquidity Output'!$F$29<-15%,0,1)) -> 1 | D80: =IF('Liquidity Output'!$F$37>15%,0,IF('Liquidity Output'!$F$37<-15%,0,1)) -> 1
A81: Counter balancing capacity up to 1 year | B81: =IF('Liquidity Output'!$B$20<0,0,IF('Liquidity Output'!$C$20<0,0,IF('Liquidity Output'!$D$20<0,0,IF('Liquidity Output'!$E$20<0,0,IF('Liquidity Output'!$F$20<0,0,1))))) -> 1 | C81: =IF('Liquidity Output'!$B$28<0,0,IF('Liquidity Output'!$C$28<0,0,IF('Liquidity Output'!$D$28<0,0,IF('Liquidity Output'!$E$28<0,0,IF('Liquidity Output'!$F$28<0,0,1))))) -> 1 | D81: =IF('Liquidity Output'!$B$36<0,0,IF('Liquidity Output'!$C$36<0,0,IF('Liquidity Output'!$D$36<0,0,IF('Liquidity Output'!$E$36<0,0,IF('Liquidity Output'!$F$36<0,0,1))))) -> 1
A84: Combined Shocks (Interest Rate Risks, Credit Risks & Equity Price Risks)
A85: Magnitude of Shock | B85: Minor | C85: Moderate | D85: Major
A86: Revised Capital | B86: =$B$4-('Credit Risk-1'!B29+'Credit Risk-2'!B21+'Credit Risk-3'!B17+'Credit Risk-4'!B29+'Credit Risk-5'!B32+'Share Risks'!B13-'Interest Rate Output'!B18-'Interest Rate Output'!B17) -> 0 | C86: =$B$4-('Credit Risk-1'!C29+'Credit Risk-2'!C21+'Credit Risk-3'!C17+'Credit Risk-4'!C29+'Credit Risk-5'!C32+'Share Risks'!C13-'Interest Rate Output'!C18-'Interest Rate Output'!C17) -> 0 | D86: =$B$4-('Credit Risk-1'!D29+'Credit Risk-2'!D21+'Credit Risk-3'!D17+'Credit Risk-4'!D29+'Credit Risk-5'!D32+'Share Risks'!D13-'Interest Rate Output'!D18-'Interest Rate Output'!D17) -> 0
A87: Revised RWA | B87: =$B$5-('Credit Risk-1'!B29+'Credit Risk-2'!B21+'Credit Risk-3'!B17+'Credit Risk-4'!B29+'Credit Risk-5'!B32+'Share Risks'!B13-'Interest Rate Output'!B18-'Interest Rate Output'!B17) -> 0 | C87: =$B$5-('Credit Risk-1'!C29+'Credit Risk-2'!C21+'Credit Risk-3'!C17+'Credit Risk-4'!C29+'Credit Risk-5'!C32+'Share Risks'!C13-'Interest Rate Output'!C18-'Interest Rate Output'!C17) -> 0 | D87: =$B$5-('Credit Risk-1'!D29+'Credit Risk-2'!D21+'Credit Risk-3'!D17+'Credit Risk-4'!D29+'Credit Risk-5'!D32+'Share Risks'!D13-'Interest Rate Output'!D18-'Interest Rate Output'!D17) -> 0
A88: Revised CAR | B88: =IF(B87<>0,B86/B87,0) -> 0 | C88: =IF(C87<>0,C86/C87,0) -> 0 | D88: =IF(D87<>0,D86/D87,0) -> 0
A94: Signature | D94: Signature
A95: Head Of Risk Management | D95: Managing Director
A96: ='Insolvency Output'!A4 -> Insolvency Ratio
A97: Current Scenario
A98: ='Insolvency Output'!A10 -> Infection Ratio (NPL to Loans) | B98: ='Insolvency Output'!B10 -> 0
A99: ='Insolvency Output'!A11 -> Critical Infection Ratio (CIR) | B99: ='Insolvency Output'!B11 -> 0
A100: ='Insolvency Output'!A12 -> Insolvency Ratio | B100: ='Insolvency Output'!B12 -> 0
A102: Insolvency Ratio after Shocks
A103: Magnitude of Shock | B103: Minor | C103: Moderate | D103: Major
A104: ='Insolvency Output'!A10 -> Infection Ratio (NPL to Loans) | B104: ='Insolvency Output'!B30 -> 0 | C104: ='Insolvency Output'!C30 -> 0 | D104: ='Insolvency Output'!D30 -> 0
A105: ='Insolvency Output'!A11 -> Critical Infection Ratio (CIR) | B105: ='Insolvency Output'!B31 -> 0 | C105: ='Insolvency Output'!C31 -> 0 | D105: ='Insolvency Output'!D31 -> 0
A106: ='Insolvency Output'!A12 -> Insolvency Ratio | B106: ='Insolvency Output'!B32 -> 0 | C106: ='Insolvency Output'!C32 -> 0 | D106: ='Insolvency Output'!D32 -> 0
A111: Signature | D111: Signature
A112: Head Of Risk Management | D112: Managing Director

Sheet Insolvency Output
A1: Name of the Institution : | B1: =IF('Credit Input'!C1="","",'Credit Input'!C1) -> 
A2: Reporting Base Date: | B2: ='Credit Input'!C3 -> 00:00:00
A4: Insolvency Ratio
A5: Basic Information
A6: Regulatory Capital (BDT in Crore ) | B6: ='Credit Input'!C8 -> 0
A7: Total Loan (BDT in Crore) | B7: ='Credit Input'!C43 -> 0
A8: Total NPL (BDT in Crore) | B8: =SUM('Credit Input'!J43:K43,'Credit Input'!M43:N43,'Credit Input'!P43:Q43) -> 0
A9: Total of NPL and Regulatory Capital | B9: =B6+B8 -> 0
A10: Infection Ratio (NPL to Loans) | B10: =IF(B7<>0,B8/B7,0) -> 0
A11: Critical Infection Ratio (CIR) | B11: =IF(B7<>0,B9/B7,0) -> 0
A12: Insolvency Ratio | B12: =IF(B11<>0,B10/B11,0) -> 0
A16: Combined Shocks
A17: Magnitude of Shock | B17: Minor | C17: Moderate | D17: Major
A18: Increase of NPL after CR-1 | B18: ='Credit Risk-1'!B24 -> 0 | C18: ='Credit Risk-1'!C24 -> 0 | D18: ='Credit Risk-1'!D24 -> 0
A19: Increase of NPL after CR-2 | B19: =('Credit Risk-2'!$C$13+'Credit Risk-2'!$C$14)*'Credit Risk-2'!B18 -> 0 | C19: =('Credit Risk-2'!$C$13+'Credit Risk-2'!$C$14)*'Credit Risk-2'!C18 -> 0 | D19: =('Credit Risk-2'!$C$13+'Credit Risk-2'!$C$14)*'Credit Risk-2'!D18 -> 0
A20: Increase of NPL after CR-4 | B20: ='Credit Risk-4'!B24 -> 0 | C20: ='Credit Risk-4'!C24 -> 0 | D20: ='Credit Risk-4'!D24 -> 0
A21: Increase of NPL after CR-5 | B21: ='Credit Risk-5'!B31 -> 0 | C21: ='Credit Risk-5'!C31 -> 0 | D21: ='Credit Risk-5'!D31 -> 0
A22: Revised Regulatory Capital after CR-1 | B22: ='Credit Risk-1'!B30 -> 0 | C22: ='Credit Risk-1'!C30 -> 0 | D22: ='Credit Risk-1'!D30 -> 0
A23: Revised Regulatory Capital after CR-2 | B23: ='Credit Risk-2'!B22 -> 0 | C23: ='Credit Risk-2'!C22 -> 0 | D23: ='Credit Risk-2'!D22 -> 0
A24: Revised Regulatory Capital after CR-4 | B24: ='Credit Risk-4'!B30 -> 0 | C24: ='Credit Risk-4'!C30 -> 0 | D24: ='Credit Risk-4'!D30 -> 0
A25: Revised Regulatory Capital after CR-5 | B25: ='Credit Risk-5'!B33 -> 0 | C25: ='Credit Risk-5'!C33 -> 0 | D25: ='Credit Risk-5'!D33 -> 0
A26: Increase of NPL | B26: =(B18+B19+B20+B21)/4 -> 0 | C26: =(C18+C19+C20+C21)/4 -> 0 | D26: =(D18+D19+D20+D21)/4 -> 0
A27: Revised NPL | B27: =$B$8+B26 -> 0 | C27: =$B$8+C26 -> 0 | D27: =$B$8+D26 -> 0
A28: Revised Regulatory Capital | B28: =(B22+B23+B24+B25)/4 -> 0 | C28: =(C22+C23+C24+C25)/4 -> 0 | D28: =(D22+D23+D24+D25)/4 -> 0
A29: Total of NPL & Regulatory Capital | B29: =B27+B28 -> 0 | C29: =C27+C28 -> 0 | D29: =D27+D28 -> 0
A30: Revised Infection Ratio (Revised NPL to Loans) | B30: =IF($B$7<>0,B27/$B$7,0) -> 0 | C30: =IF($B$7<>0,C27/$B$7,0) -> 0 | D30: =IF($B$7<>0,D27/$B$7,0) -> 0
A31: Revised Critical Infection Ratio | B31: =IF($B$7<>0,B29/$B$7,0) -> 0 | C31: =IF($B$7<>0,C29/$B$7,0) -> 0 | D31: =IF($B$7<>0,D29/$B$7,0) -> 0
A32: Revised Insolvency Ratio | B32: =IF($B$31<>0,B30/B31,0) -> 0 | C32: =IF($B$31<>0,C30/C31,0) -> 0 | D32: =IF($B$31<>0,D30/D31,0) -> 0

Sheet Interest Rate Output
A1: Name of the Institution : | B1: =IF('Credit Input'!C1="","",'Credit Input'!C1) -> 
A2: Reporting Base Date: | B2: ='Credit Input'!C3 -> 00:00:00
A4: Particulars | B4: Maturitywise Distribution of Assets-Liabilities
B5: 1 to 30/31 day (One month) | C5: Over 1 month to 2 months | D5: Over 2 months to 3 months | E5: Over 3 months to 6 months | F5: Over 6 months to 1 year
A6: 1 | B6: 2 | C6: 3 | D6: 4 | E6: 5 | F6: 6
A7: A. TOTAL RATE SENSITIVE LIABILITIES (A) | B7: ='Interest Rate Input'!B18 -> 0 | C7: ='Interest Rate Input'!C18 -> 0 | D7: ='Interest Rate Input'!D18 -> 0 | E7: ='Interest Rate Input'!E18 -> 0 | F7: ='Interest Rate Input'!F18 -> 0
A8: B. TOTAL RATE SENSITIVE ASSETS (B) | B8: ='Interest Rate Input'!B30 -> 0 | C8: ='Interest Rate Input'!C30 -> 0 | D8: ='Interest Rate Input'!D30 -> 0 | E8: ='Interest Rate Input'!E30 -> 0 | F8: ='Interest Rate Input'!F30 -> 0
A9: C. MISMATCH | B9: =B8-B7 -> 0 | C9: =C8-C7 -> 0 | D9: =D8-D7 -> 0 | E9: =E8-E7 -> 0 | F9: =F8-F7 -> 0
A10: D. CUMULATIVE MISMATCH | B10: =B9 -> 0 | C10: =B10+C9 -> 0 | D10: =C10+D9 -> 0 | E10: =D10+E9 -> 0 | F10: =E10+F9 -> 0
A11: E. MISMATCH (%) | B11: =IF(B7<>0,(B8-B7)/B7,0) -> 0 | C11: =IF(C7<>0,(C8-C7)/C7,0) -> 0 | D11: =IF(D7<>0,(D8-D7)/D7,0) -> 0 | E11: =IF(E7<>0,(E8-E7)/E7,0) -> 0 | F11: =IF(F7<>0,(F8-F7)/F7,0) -> 0
G12: =20700-19725 -> 975
A14: Interest Rate Risk
A15: Magnitude of Shock | B15: Minor | C15: Moderate | D15: Major
B16: 0.02 | C16: 0.04 | D16: 0.06
A17: Change in the Value of Bond Portfolio (BDT in Crore) | B17: =-('Liquidity Input'!$C$102*'Liquidity Input'!$I$102*'Interest Rate Output'!B16) -> 0 | C17: =-('Liquidity Input'!$C$102*'Liquidity Input'!$I$102*'Interest Rate Output'!C16) -> 0 | D17: =-('Liquidity Input'!$C$102*'Liquidity Input'!$I$102*'Interest Rate Output'!D16) -> 0
A18: Net Interest Income (BDT in Crore) | B18: =$F$10*B16 -> 0 | C18: =$F$10*C16 -> 0 | D18: =$F$10*D16 -> 0
A19: Revised Regulatory Capital (BDT in Crore) | B19: ='Credit Input'!$C$8+('Interest Rate Output'!B17+'Interest Rate Output'!B18) -> 0 | C19: ='Credit Input'!$C$8+('Interest Rate Output'!C17+'Interest Rate Output'!C18) -> 0 | D19: ='Credit Input'!$C$8+('Interest Rate Output'!D17+'Interest Rate Output'!D18) -> 0
A20: Risk Weighted Assets (BDT in Crore) | B20: ='Credit Input'!$C$9 -> 0 | C20: ='Credit Input'!$C$9 -> 0 | D20: ='Credit Input'!$C$9 -> 0
A21: Revised CAR (%) | B21: =IF(B20<>0,B19/B20,0) -> 0 | C21: =IF(C20<>0,C19/C20,0) -> 0 | D21: =IF(D20<>0,D19/D20,0) -> 0

Sheet Liquidity Output
A1: Name of the Institution : | B1: =IF('Credit Input'!C1="","",'Credit Input'!C1) -> 
A2: Reporting Base Date: | B2: ='Credit Input'!C3 -> 00:00:00
J3: (Amount in crore)
A4: Particulars | B4: Maturitywise Distribution of Assets-Liabilities
B5: 1 to 30/31 day (One month) | C5: Over 1 month to 2 months | D5: Over 2 months to 3 months | E5: Over 3 months to 6 months | F5: Over 6 months to 1 year | G5: Over 1 year to 3 years | H5: Over 3 years to 5 years | I5: Over 5 years | J5: Total
A6: 1 | B6: 2 | C6: 3 | D6: 4 | E6: 5 | F6: 6 | G6: 7 | H6: 8 | I6: 9 | J6: 10
A7: A. TOTAL OUTFLOWS (A) | B7: ='Liquidity Input'!B33 -> 0 | C7: ='Liquidity Input'!C33 -> 0 | D7: ='Liquidity Input'!D33 -> 0 | E7: ='Liquidity Input'!E33 -> 0 | F7: ='Liquidity Input'!F33 -> 0 | G7: ='Liquidity Input'!G33 -> 0 | H7: ='Liquidity Input'!H33 -> 0 | I7: ='Liquidity Input'!I33 -> 0 | J7: ='Liquidity Input'!J33 -> 0
A8: B. TOTAL INFLOWS (B) | B8: ='Liquidity Input'!B56 -> 0 | C8: ='Liquidity Input'!C56 -> 0 | D8: ='Liquidity Input'!D56 -> 0 | E8: ='Liquidity Input'!E56 -> 0 | F8: ='Liquidity Input'!F56 -> 0 | G8: ='Liquidity Input'!G56 -> 0 | H8: ='Liquidity Input'!H56 -> 0 | I8: ='Liquidity Input'!I56 -> 0 | J8: ='Liquidity Input'!J56 -> 0
A9: C. MISMATCH | B9: =B8-B7 -> 0 | C9: =C8-C7 -> 0 | D9: 0 | E9: 0 | F9: 0 | G9: 0 | H9: 0 | I9: 0 | J9: 0
A10: D. CUMULATIVE MISMATCH | B10: =B9 -> 0 | C10: =B10+C9 -> 0 | D10: 0 | E10: 0 | F10: 0 | G10: 0 | H10: 0 | I10: 0
A11: E. MISMATCH (%) | B11: =IF(B7<>0,(B8-B7)/B7,0) -> 0 | C11: =IF(C7<>0,(C8-C7)/C7,0) -> 0 | D11: 0 | E11: 0 | F11: 0 | G11: 0 | H11: 0 | I11: 0 | J11: 0
A12: F. CUMULATIVE COUNTER BALANCING CAPACITY (AFTER MISMATCH) | B12: =('Liquidity Input'!$B$104*0.5+'Liquidity Input'!$B$105*0.2)+'Liquidity Output'!B10 -> 0 | C12: =('Liquidity Input'!$B$104*0.5+'Liquidity Input'!$B$105*0.2)+'Liquidity Output'!C10 -> 0 | D12: =('Liquidity Input'!$B$104*0.5+'Liquidity Input'!$B$105*0.2)+'Liquidity Output'!D10 -> 0 | E12: =('Liquidity Input'!$B$104*0.5+'Liquidity Input'!$B$105*0.2)+'Liquidity Output'!E10 -> 0 | F12: =('Liquidity Input'!$B$104*0.5+'Liquidity Input'!$B$105*0.2)+'Liquidity Output'!F10 -> 0 | G12: =('Liquidity Input'!$B$104*0.5+'Liquidity Input'!$B$105*0.2)+'Liquidity Output'!G10 -> 0 | H12: =('Liquidity Input'!$B$104*0.5+'Liquidity Input'!$B$105*0.2)+'Liquidity Output'!H10 -> 0 | I12: =('Liquidity Input'!$B$104*0.5+'Liquidity Input'!$B$105*0.2)+'Liquidity Output'!I10 -> 0 | J12: ='Liquidity Output'!J9 -> 0 | L12: 100 | M12: =L12*0.95 -> 95 | N12: =M12*0.95 -> 90.25 | O12: =N12*0.95 -> 85.7375 | P12: 81.450625 | Q12: 77.37809375 | R12: 73.50918906 | S12: 69.83372961 | T12: 66.34204313
F13: =IF(SUM(B7:F7)<>0,F10/SUM(B7:F7),0) -> 0 | K13: =20700-19725 -> 975 | M13: =100*(0.95)^8 -> 66.34204313
A14: =CONCATENATE("Scenario 1","-","Shock of"," ",'Liquidity Input'!B110*100,"","%") -> Scenario 1-Shock of 5%
A15: A. TOTAL OUTFLOWS (A) | B15: =$B$7+$C$7*'Liquidity Input'!B110 -> 0 | C15: =$C$7*(1-'Liquidity Input'!$B$110)+$D$7*'Liquidity Input'!$B$110 -> 0 | D15: =$D$7*(1-'Liquidity Input'!$B$110)+$E$7*'Liquidity Input'!$B$110 -> 0 | E15: =$E$7*(1-'Liquidity Input'!$B$110)+$F$7*'Liquidity Input'!$B$110 -> 0 | F15: =$F$7*(1-'Liquidity Input'!$B$110)+$G$7*'Liquidity Input'!$B$110 -> 0 | G15: =$G$7*(1-'Liquidity Input'!$B$110)+$H$7*'Liquidity Input'!$B$110 -> 0 | H15: =$H$7*(1-'Liquidity Input'!$B$110)+$I$7*'Liquidity Input'!$B$110 -> 0 | I15: =$I$7*(1-'Liquidity Input'!$B$110) -> 0 | J15: =SUM(B15:I15) -> 0
A16: B. TOTAL INFLOWS (B) | B16: =$B$8*(1-'Liquidity Input'!$B$110) -> 0 | C16: =$C$8*(1-'Liquidity Input'!$B$110)+$B$8*'Liquidity Input'!$B$110 -> 0 | D16: =$D$8*(1-'Liquidity Input'!$B$110)+$C$8*'Liquidity Input'!$B$110 -> 0 | E16: =$E$8*(1-'Liquidity Input'!$B$110)+$D$8*'Liquidity Input'!$B$110 -> 0 | F16: =$F$8*(1-'Liquidity Input'!$B$110)+$E$8*'Liquidity Input'!$B$110 -> 0 | G16: =$G$8*(1-'Liquidity Input'!$B$110)+$F$8*'Liquidity Input'!$B$110 -> 0 | H16: =$H$8*(1-'Liquidity Input'!$B$110)+$G$8*'Liquidity Input'!$B$110 -> 0 | I16: =$I$8+$H$8*'Liquidity Input'!$B$110 -> 0 | J16: =SUM(B16:I16) -> 0
A17: C. MISMATCH | B17: =B16-B15 -> 0 | C17: =C16-C15 -> 0 | D17: 0 | E17: 0 | F17: 0 | G17: 0 | H17: 0 | I17: 0 | J17: 0
A18: D. CUMULATIVE MISMATCH | B18: =B17 -> 0 | C18: =B18+C17 -> 0 | D18: =C18+D17 -> 0 | E18: 0 | F18: 0 | G18: 0 | H18: 0 | I18: 0
A19: E. MISMATCH (%) | B19: =IF(B15<>0,(B16-B15)/B15,0) -> 0 | C19: =IF(C15<>0,(C16-C15)/C15,0) -> 0 | D19: 0 | E19: 0 | F19: 0 | G19: 0 | H19: 0 | I19: 0 | J19: 0
A20: F. CUMULATIVE COUNTER BALANCING CAPACITY (AFTER HAIRCUT & MISMATCH) | B20: =('Liquidity Input'!$B$104*0.5+'Liquidity Input'!$B$105*0.2)*(1-'Liquidity Input'!$B$110)+'Liquidity Output'!B18 -> 0 | C20: =('Liquidity Input'!$B$104*0.5+'Liquidity Input'!$B$105*0.2)*(1-'Liquidity Input'!$B$110)+'Liquidity Output'!C18 -> 0 | D20: =('Liquidity Input'!$B$104*0.5+'Liquidity Input'!$B$105*0.2)*(1-'Liquidity Input'!$B$110)+'Liquidity Output'!D18 -> 0 | E20: =('Liquidity Input'!$B$104*0.5+'Liquidity Input'!$B$105*0.2)*(1-'Liquidity Input'!$B$110)+'Liquidity Output'!E18 -> 0 | F20: =('Liquidity Input'!$B$104*0.5+'Liquidity Input'!$B$105*0.2)*(1-'Liquidity Input'!$B$110)+'Liquidity Output'!F18 -> 0 | G20: =('Liquidity Input'!$B$104*0.5+'Liquidity Input'!$B$105*0.2)*(1-'Liquidity Input'!$B$110)+'Liquidity Output'!G18 -> 0 | H20: =('Liquidity Input'!$B$104*0.5+'Liquidity Input'!$B$105*0.2)*(1-'Liquidity Input'!$B$110)+'Liquidity Output'!H18 -> 0 | I20: =('Liquidity Input'!$B$104*0.5+'Liquidity Input'!$B$105*0.2)*(1-'Liquidity Input'!$B$110)+'Liquidity Output'!I18 -> 0
F21: =IF(SUM(B15:F15)<>0,F18/SUM(B15:F15),0) -> 0
A22: =CONCATENATE("Scenario 2","-","Shock of"," ",'Liquidity Input'!C110*100,"","%") -> Scenario 2-Shock of 7%
A23: A. TOTAL OUTFLOWS (A) | B23: =$B$7+$C$7*'Liquidity Input'!C110 -> 0 | C23: =$C$7*(1-'Liquidity Input'!C110)+$D$7*'Liquidity Input'!C110 -> 0 | D23: =$D$7*(1-'Liquidity Input'!C110)+$E$7*'Liquidity Input'!C110 -> 0 | E23: =$E$7*(1-'Liquidity Input'!C110)+$F$7*'Liquidity Input'!C110 -> 0 | F23: =$F$7*(1-'Liquidity Input'!C110)+$G$7*'Liquidity Input'!C110 -> 0 | G23: =$G$7*(1-'Liquidity Input'!C110)+$H$7*'Liquidity Input'!C110 -> 0 | H23: =$H$7*(1-'Liquidity Input'!C110)+$I$7*'Liquidity Input'!C110 -> 0 | I23: =$I$7*(1-'Liquidity Input'!C110) -> 0 | J23: =SUM(B23:I23) -> 0
A24: B. TOTAL INFLOWS (B) | B24: =$B$8*(1-'Liquidity Input'!C110) -> 0 | C24: =$C$8*(1-'Liquidity Input'!C110)+$B$8*'Liquidity Input'!C110 -> 0 | D24: =$D$8*(1-'Liquidity Input'!C110)+$C$8*'Liquidity Input'!C110 -> 0 | E24: =$E$8*(1-'Liquidity Input'!C110)+$D$8*'Liquidity Input'!C110 -> 0 | F24: =$F$8*(1-'Liquidity Input'!C110)+$E$8*'Liquidity Input'!C110 -> 0 | G24: =$G$8*(1-'Liquidity Input'!C110)+$F$8*'Liquidity Input'!C110 -> 0 | H24: =$H$8*(1-'Liquidity Input'!C110)+$G$8*'Liquidity Input'!C110 -> 0 | I24: =$I$8+$H$8*'Liquidity Input'!C110 -> 0 | J24: =SUM(B24:I24) -> 0
A25: C. MISMATCH | B25: =B24-B23 -> 0 | C25: =C24-C23 -> 0 | D25: 0 | E25: 0 | F25: 0 | G25: 0 | H25: 0 | I25: 0 | J25: 0
A26: D. CUMULATIVE MISMATCH | B26: =B25 -> 0 | C26: =B26+C25 -> 0 | D26: 0 | E26: 0 | F26: 0 | G26: 0 | H26: 0 | I26: 0
A27: E. MISMATCH (%) | B27: =IF(B23<>0,(B24-B23)/B23,0) -> 0 | C27: =IF(C23<>0,(C24-C23)/C23,0) -> 0 | D27: 0 | E27: 0 | F27: 0 | G27: 0 | H27: 0 | I27: 0 | J27: 0
A28: F. CUMULATIVE COUNTER BALANCING CAPACITY (AFTER HAIRCUT & MISMATCH) | B28: =('Liquidity Input'!$B$104*0.5+'Liquidity Input'!$B$105*0.2)*(1-'Liquidity Input'!$C$110)+'Liquidity Output'!B26 -> 0 | C28: =('Liquidity Input'!$B$104*0.5+'Liquidity Input'!$B$105*0.2)*(1-'Liquidity Input'!$C$110)+'Liquidity Output'!C26 -> 0 | D28: =('Liquidity Input'!$B$104*0.5+'Liquidity Input'!$B$105*0.2)*(1-'Liquidity Input'!$C$110)+'Liquidity Output'!D26 -> 0 | E28: =('Liquidity Input'!$B$104*0.5+'Liquidity Input'!$B$105*0.2)*(1-'Liquidity Input'!$C$110)+'Liquidity Output'!E26 -> 0 | F28: =('Liquidity Input'!$B$104*0.5+'Liquidity Input'!$B$105*0.2)*(1-'Liquidity Input'!$C$110)+'Liquidity Output'!F26 -> 0 | G28: =('Liquidity Input'!$B$104*0.5+'Liquidity Input'!$B$105*0.2)*(1-'Liquidity Input'!$C$110)+'Liquidity Output'!G26 -> 0 | H28: =('Liquidity Input'!$B$104*0.5+'Liquidity Input'!$B$105*0.2)*(1-'Liquidity Input'!$C$110)+'Liquidity Output'!H26 -> 0 | I28: =('Liquidity Input'!$B$104*0.5+'Liquidity Input'!$B$105*0.2)*(1-'Liquidity Input'!$C$110)+'Liquidity Output'!I26 -> 0
F29: =IF(SUM(B23:F23)<>0,F26/SUM(B23:F23),0) -> 0
A30: =CONCATENATE("Scenario 3","-","Shock of"," ",'Liquidity Input'!D110*100,"","%") -> Scenario 3-Shock of 10%
A31: A. TOTAL OUTFLOWS (A) | B31: =$B$7+$C$7*'Liquidity Input'!D110 -> 0 | C31: =$C$7*(1-'Liquidity Input'!D110)+$D$7*'Liquidity Input'!D110 -> 0 | D31: =$D$7*(1-'Liquidity Input'!D110)+$E$7*'Liquidity Input'!D110 -> 0 | E31: =$E$7*(1-'Liquidity Input'!D110)+$F$7*'Liquidity Input'!D110 -> 0 | F31: =$F$7*(1-'Liquidity Input'!D110)+$G$7*'Liquidity Input'!D110 -> 0 | G31: =$G$7*(1-'Liquidity Input'!D110)+$H$7*'Liquidity Input'!D110 -> 0 | H31: =$H$7*(1-'Liquidity Input'!D110)+$I$7*'Liquidity Input'!D110 -> 0 | I31: =$I$7*(1-'Liquidity Input'!D110) -> 0 | J31: =SUM(B31:I31) -> 0
A32: B. TOTAL INFLOWS (B) | B32: =$B$8*(1-'Liquidity Input'!D110) -> 0 | C32: =$C$8*(1-'Liquidity Input'!D110)+$B$8*'Liquidity Input'!D110 -> 0 | D32: =$D$8*(1-'Liquidity Input'!D110)+$C$8*'Liquidity Input'!D110 -> 0 | E32: =$E$8*(1-'Liquidity Input'!D110)+$D$8*'Liquidity Input'!D110 -> 0 | F32: =$F$8*(1-'Liquidity Input'!D110)+$E$8*'Liquidity Input'!D110 -> 0 | G32: =$G$8*(1-'Liquidity Input'!D110)+$F$8*'Liquidity Input'!D110 -> 0 | H32: =$H$8*(1-'Liquidity Input'!D110)+$G$8*'Liquidity Input'!D110 -> 0 | I32: =$I$8+$H$8*'Liquidity Input'!D110 -> 0 | J32: =SUM(B32:I32) -> 0
A33: C. MISMATCH | B33: =B32-B31 -> 0 | C33: =C32-C31 -> 0 | D33: 0 | E33: 0 | F33: 0 | G33: 0 | H33: 0 | I33: 0 | J33: 0
A34: D. CUMULATIVE MISMATCH | B34: =B33 -> 0 | C34: =B34+C33 -> 0 | D34: 0 | E34: 0 | F34: 0 | G34: 0 | H34: 0 | I34: 0
A35: E. MISMATCH (%) | B35: =IF(B31<>0,(B32-B31)/B31,0) -> 0 | C35: =IF(C31<>0,(C32-C31)/C31,0) -> 0 | D35: 0 | E35: 0 | F35: 0 | G35: 0 | H35: 0 | I35: 0 | J35: 0
A36: F. CUMULATIVE COUNTER BALANCING CAPACITY (AFTER HAIRCUT & MISMATCH) | B36: =('Liquidity Input'!$B$104*0.5+'Liquidity Input'!$B$105*0.2)*(1-'Liquidity Input'!$D$110)+'Liquidity Output'!B34 -> 0 | C36: =('Liquidity Input'!$B$104*0.5+'Liquidity Input'!$B$105*0.2)*(1-'Liquidity Input'!$D$110)+'Liquidity Output'!C34 -> 0 | D36: =('Liquidity Input'!$B$104*0.5+'Liquidity Input'!$B$105*0.2)*(1-'Liquidity Input'!$D$110)+'Liquidity Output'!D34 -> 0 | E36: =('Liquidity Input'!$B$104*0.5+'Liquidity Input'!$B$105*0.2)*(1-'Liquidity Input'!$D$110)+'Liquidity Output'!E34 -> 0 | F36: =('Liquidity Input'!$B$104*0.5+'Liquidity Input'!$B$105*0.2)*(1-'Liquidity Input'!$D$110)+'Liquidity Output'!F34 -> 0 | G36: =('Liquidity Input'!$B$104*0.5+'Liquidity Input'!$B$105*0.2)*(1-'Liquidity Input'!$D$110)+'Liquidity Output'!G34 -> 0 | H36: =('Liquidity Input'!$B$104*0.5+'Liquidity Input'!$B$105*0.2)*(1-'Liquidity Input'!$D$110)+'Liquidity Output'!H34 -> 0 | I36: =('Liquidity Input'!$B$104*0.5+'Liquidity Input'!$B$105*0.2)*(1-'Liquidity Input'!$D$110)+'Liquidity Output'!I34 -> 0
F37: =IF(SUM(B31:F31)<>0,F34/SUM(B31:F31),0) -> 0

Sheet Share Risks
A1: Name of the Institution : | B1: =IF('Credit Input'!C1="","",'Credit Input'!C1) -> 
A2: Reporting Base Date: | B2: ='Credit Input'!C3 -> 00:00:00
A4: Required Information
A5: Regulatory Capital (BDT in Crore) | B5: ='Credit Input'!C8 -> 0
A6: Risk Weigheted Assets (RWA) (BDT in Crore) | B6: ='Credit Input'!C9 -> 0
A7: Capital Adequacy Ratio (CAR) | B7: ='Credit Input'!C10 -> 0
A8: Total Exposure in Stock Market (BDT in Crore) | B8: ='Liquidity Input'!J43 -> 0
A9: Provision Surplus/Shortfall (BDT in Crore) | B9: ='Credit Input'!C11 -> 0
A11: Fall in Stock Prices
A12: Magnitude of Shock | B12: ='Credit Input'!R56 -> 0.1 | C12: 0.25 | D12: 0.5
A13: Fall in the stock prices(BDT in Crore) | B13: =$B$8*B12 -> 0 | C13: =$B$8*C12 -> 0 | D13: =$B$8*D12 -> 0
A14: Revised Capital(BDT in Crore) | B14: =IF(B13>=$B$9,$B$5-(B13-$B$9),$B$5) -> 0 | C14: =IF(C13>=$B$9,$B$5-(C13-$B$9),$B$5) -> 0 | D14: =IF(D13>=$B$9,$B$5-(D13-$B$9),$B$5) -> 0
A15: Revised Risk Weighted Assets(BDT in Crore) | B15: =IF(B13>=$B$9,$B$6-(B13-$B$9),$B$6) -> 0 | C15: =IF(C13>=$B$9,$B$6-(C13-$B$9),$B$6) -> 0 | D15: =IF(D13>=$B$9,$B$6-(D13-$B$9),$B$6) -> 0
A16: Revised CAR | B16: =IF(B15<>0,B14/B15,0) -> 0 | C16: =IF(C15<>0,C14/C15,0) -> 0 | D16: =IF(D15<>0,D14/D15,0) -> 0

Sheet Credit Risk-5
A1: Name of the Institution : | B1: =IF('Credit Input'!C1="","",'Credit Input'!C1) -> 
A2: Reporting Base Date: | B2: ='Credit Input'!C3 -> 00:00:00
A4: Required Information
A5: Regulatory Capital (BDT in Crore ) | B5: ='Credit Input'!C8 -> 0
A6: Risk Weigheted Assets (RWA) (BDT in Crore) | B6: ='Credit Input'!C9 -> 0
A7: Capital Adequacy Ratio (CAR) | B7: =IF(B6<>0,B5/B6,0) -> 0
A8: Total Loan to Top 10 Borrowers (BDT in Crore) | B8: ='Credit Input'!C48 -> 0
A9: Total Loans for which Eligible Securities Held (BDT in Crore) | B9: ='Credit Input'!C49 -> 0
A10: Total Loans for which No Eligible Securities Held (BDT in Crore) | B10: ='Credit Input'!C50 -> 0
A11: Value of Eligible Security (BDT in Crore) | B11: ='Credit Input'!C51 -> 0
A12: Current Provisions (BDT in Crore) | B12: =(('Credit Input'!D43+'Credit Input'!E43)*'Credit Input'!C61+('Credit Input'!G43+'Credit Input'!H43)*'Credit Input'!D61+('Credit Input'!J43+'Credit Input'!K43-'Credit Input'!L43)*'Credit Input'!E61+('Credit Input'!M43+'Credit Input'!N43-'Credit Input'!O43)*'Credit Input'!F61+('Credit Input'!P43+'Credit Input'!Q43-'Credit Input'!R43)*'Credit Input'!G61) -> 0
A13: Provision Surplus/Shortfall (BDT in Crore) | B13: ='Credit Input'!C11 -> 0
A15: Loans without ES
A16: Magnitude of Shock | B16: =CONCATENATE("Top"," ",'Credit Input'!O56," ", "Borrowers") -> Top 3 Borrowers | C16: =CONCATENATE("Top"," ",'Credit Input'!P56," ", "Borrowers") -> Top 5 Borrowers | D16: =CONCATENATE("Top"," ",'Credit Input'!Q56," ", "Borrowers") -> Top 10 Borrowers
A17: Total Loans Disbursed to (BDT in Crore) | B17: =IF('Credit Input'!O56=10,('Credit Input'!$C$50),IF('Credit Input'!O56=9,('Credit Input'!$D$50+'Credit Input'!$E$50+'Credit Input'!$F$50+'Credit Input'!$G$50+'Credit Input'!$H$50+'Credit Input'!$I$50+'Credit Input'!$J$50+'Credit Input'!$K$50+'Credit Input'!$L$50),IF('Credit Input'!O56=8,('Credit Input'!$D$50+'Credit Input'!$E$50+'Credit Input'!$F$50+'Credit Input'!$G$50+'Credit Input'!$H$50+'Credit Input'!$I$50+'Credit Input'!$J$50+'Credit Input'!$K$50),IF('Credit Input'!O56=7,('Credit Input'!$D$50+'Credit Input'!$E$50+'Credit Input'!$F$50+'Credit Input'!$G$50+'Credit Input'!$H$50+'Credit Input'!$I$50+'Credit Input'!$J$50),IF('Credit Input'!O56=6,('Credit Input'!$D$50+'Credit Input'!$E$50+'Credit Input'!$F$50+'Credit Input'!$G$50+'Credit Input'!$H$50+'Credit Input'!$I$50),IF('Credit Input'!O56=5,('Credit Input'!$D$50+'Credit Input'!$E$50+'Credit Input'!$F$50+'Credit Input'!$G$50+'Credit Input'!$H$50),IF('Credit Input'!O56=4,('Credit Input'!$D$50+'Credit Input'!$E$50+'Credit Input'!$F$50+'Credit Input'!$G$50),IF('Credit Input'!O56=3,('Credit Input'!$D$50+'Credit Input'!$E$50+'Credit Input'!$F$50),IF('Credit Input'!O56=2,('Credit Input'!$D$50+'Credit Input'!$E$50),'Credit Input'!$D$50))))))))) -> 0 | C17: =IF('Credit Input'!P56=10,('Credit Input'!$C$50),IF('Credit Input'!P56=9,('Credit Input'!$D$50+'Credit Input'!$E$50+'Credit Input'!$F$50+'Credit Input'!$G$50+'Credit Input'!$H$50+'Credit Input'!$I$50+'Credit Input'!$J$50+'Credit Input'!$K$50+'Credit Input'!$L$50),IF('Credit Input'!P56=8,('Credit Input'!$D$50+'Credit Input'!$E$50+'Credit Input'!$F$50+'Credit Input'!$G$50+'Credit Input'!$H$50+'Credit Input'!$I$50+'Credit Input'!$J$50+'Credit Input'!$K$50),IF('Credit Input'!P56=7,('Credit Input'!$D$50+'Credit Input'!$E$50+'Credit Input'!$F$50+'Credit Input'!$G$50+'Credit Input'!$H$50+'Credit Input'!$I$50+'Credit Input'!$J$50),IF('Credit Input'!P56=6,('Credit Input'!$D$50+'Credit Input'!$E$50+'Credit Input'!$F$50+'Credit Input'!$G$50+'Credit Input'!$H$50+'Credit Input'!$I$50),IF('Credit Input'!P56=5,('Credit Input'!$D$50+'Credit Input'!$E$50+'Credit Input'!$F$50+'Credit Input'!$G$50+'Credit Input'!$H$50),IF('Credit Input'!P56=4,('Credit Input'!$D$50+'Credit Input'!$E$50+'Credit Input'!$F$50+'Credit Input'!$G$50),IF('Credit Input'!P56=3,('Credit Input'!$D$50+'Credit Input'!$E$50+'Credit Input'!$F$50),IF('Credit Input'!P56=2,('Credit Input'!$D$50+'Credit Input'!$E$50),'Credit Input'!$D$50))))))))) -> 0 | D17: =IF('Credit Input'!Q56=10,('Credit Input'!$C$50),IF('Credit Input'!Q56=9,('Credit Input'!$D$50+'Credit Input'!$E$50+'Credit Input'!$F$50+'Credit Input'!$G$50+'Credit Input'!$H$50+'Credit Input'!$I$50+'Credit Input'!$J$50+'Credit Input'!$K$50+'Credit Input'!$L$50),IF('Credit Input'!Q56=8,('Credit Input'!$D$50+'Credit Input'!$E$50+'Credit Input'!$F$50+'Credit Input'!$G$50+'Credit Input'!$H$50+'Credit Input'!$I$50+'Credit Input'!$J$50+'Credit Input'!$K$50),IF('Credit Input'!Q56=7,('Credit Input'!$D$50+'Credit Input'!$E$50+'Credit Input'!$F$50+'Credit Input'!$G$50+'Credit Input'!$H$50+'Credit Input'!$I$50+'Credit Input'!$J$50),IF('Credit Input'!Q56=6,('Credit Input'!$D$50+'Credit Input'!$E$50+'Credit Input'!$F$50+'Credit Input'!$G$50+'Credit Input'!$H$50+'Credit Input'!$I$50),IF('Credit Input'!Q56=5,('Credit Input'!$D$50+'Credit Input'!$E$50+'Credit Input'!$F$50+'Credit Input'!$G$50+'Credit Input'!$H$50),IF('Credit Input'!Q56=4,('Credit Input'!$D$50+'Credit Input'!$E$50+'Credit Input'!$F$50+'Credit Input'!$G$50),IF('Credit Input'!Q56=3,('Credit Input'!$D$50+'Credit Input'!$E$50+'Credit Input'!$F$50),IF('Credit Input'!Q56=2,('Credit Input'!$D$50+'Credit Input'!$E$50),'Credit Input'!$D$50))))))))) -> 0
A18: Increase in NPL (BDT in Crore) | B18: =B17*0.8 -> 0 | C18: =C17*0.8 -> 0 | D18: =D17*0.8 -> 0
A19: Increase in Provisions | B19: =B18-(B18*'Credit Input'!$C$61) -> 0 | C19: =C18-(C18*'Credit Input'!$C$61) -> 0 | D19: =D18-(D18*'Credit Input'!$C$61) -> 0
A21: Loans with ES
A22: Magnitude of Shock | B22: =CONCATENATE("Top"," ",'Credit Input'!O56," ", "Borrowers") -> Top 3 Borrowers | C22: =CONCATENATE("Top"," ",'Credit Input'!P56," ", "Borrowers") -> Top 5 Borrowers | D22: =CONCATENATE("Top"," ",'Credit Input'!Q56," ", "Borrowers") -> Top 10 Borrowers
A23: Total Loans Disbursed to (BDT in Crore) | B23: =IF('Credit Input'!O56=10,('Credit Input'!$C$49),IF('Credit Input'!O56=9,('Credit Input'!$D$49+'Credit Input'!$E$49+'Credit Input'!$F$49+'Credit Input'!$G$49+'Credit Input'!$H$49+'Credit Input'!$I$49+'Credit Input'!$J$49+'Credit Input'!$K$49+'Credit Input'!$L$49),IF('Credit Input'!O56=8,('Credit Input'!$D$49+'Credit Input'!$E$49+'Credit Input'!$F$49+'Credit Input'!$G$49+'Credit Input'!$H$49+'Credit Input'!$I$49+'Credit Input'!$J$49+'Credit Input'!$K$49),IF('Credit Input'!O56=7,('Credit Input'!$D$49+'Credit Input'!$E$49+'Credit Input'!$F$49+'Credit Input'!$G$49+'Credit Input'!$H$49+'Credit Input'!$I$49+'Credit Input'!$J$49),IF('Credit Input'!O56=6,('Credit Input'!$D$49+'Credit Input'!$E$49+'Credit Input'!$F$49+'Credit Input'!$G$49+'Credit Input'!$H$49+'Credit Input'!$I$49),IF('Credit Input'!O56=5,('Credit Input'!$D$49+'Credit Input'!$E$49+'Credit Input'!$F$49+'Credit Input'!$G$49+'Credit Input'!$H$49),IF('Credit Input'!O56=4,('Credit Input'!$D$49+'Credit Input'!$E$49+'Credit Input'!$F$49+'Credit Input'!$G$49),IF('Credit Input'!O56=3,('Credit Input'!$D$49+'Credit Input'!$E$49+'Credit Input'!$F$49),IF('Credit Input'!O56=2,('Credit Input'!$D$49+'Credit Input'!$E$49),'Credit Input'!$D$49))))))))) -> 0 | C23: =IF('Credit Input'!P56=10,('Credit Input'!$C$49),IF('Credit Input'!P56=9,('Credit Input'!$D$49+'Credit Input'!$E$49+'Credit Input'!$F$49+'Credit Input'!$G$49+'Credit Input'!$H$49+'Credit Input'!$I$49+'Credit Input'!$J$49+'Credit Input'!$K$49+'Credit Input'!$L$49),IF('Credit Input'!P56=8,('Credit Input'!$D$49+'Credit Input'!$E$49+'Credit Input'!$F$49+'Credit Input'!$G$49+'Credit Input'!$H$49+'Credit Input'!$I$49+'Credit Input'!$J$49+'Credit Input'!$K$49),IF('Credit Input'!P56=7,('Credit Input'!$D$49+'Credit Input'!$E$49+'Credit Input'!$F$49+'Credit Input'!$G$49+'Credit Input'!$H$49+'Credit Input'!$I$49+'Credit Input'!$J$49),IF('Credit Input'!P56=6,('Credit Input'!$D$49+'Credit Input'!$E$49+'Credit Input'!$F$49+'Credit Input'!$G$49+'Credit Input'!$H$49+'Credit Input'!$I$49),IF('Credit Input'!P56=5,('Credit Input'!$D$49+'Credit Input'!$E$49+'Credit Input'!$F$49+'Credit Input'!$G$49+'Credit Input'!$H$49),IF('Credit Input'!P56=4,('Credit Input'!$D$49+'Credit Input'!$E$49+'Credit Input'!$F$49+'Credit Input'!$G$49),IF('Credit Input'!P56=3,('Credit Input'!$D$49+'Credit Input'!$E$49+'Credit Input'!$F$49),IF('Credit Input'!P56=2,('Credit Input'!$D$49+'Credit Input'!$E$49),'Credit Input'!$D$49))))))))) -> 0 | D23: =IF('Credit Input'!Q56=10,('Credit Input'!$C$49),IF('Credit Input'!Q56=9,('Credit Input'!$D$49+'Credit Input'!$E$49+'Credit Input'!$F$49+'Credit Input'!$G$49+'Credit Input'!$H$49+'Credit Input'!$I$49+'Credit Input'!$J$49+'Credit Input'!$K$49+'Credit Input'!$L$49),IF('Credit Input'!Q56=8,('Credit Input'!$D$49+'Credit Input'!$E$49+'Credit Input'!$F$49+'Credit Input'!$G$49+'Credit Input'!$H$49+'Credit Input'!$I$49+'Credit Input'!$J$49+'Credit Input'!$K$49),IF('Credit Input'!Q56=7,('Credit Input'!$D$49+'Credit Input'!$E$49+'Credit Input'!$F$49+'Credit Input'!$G$49+'Credit Input'!$H$49+'Credit Input'!$I$49+'Credit Input'!$J$49),IF('Credit Input'!Q56=6,('Credit Input'!$D$49+'Credit Input'!$E$49+'Credit Input'!$F$49+'Credit Input'!$G$49+'Credit Input'!$H$49+'Credit Input'!$I$49),IF('Credit Input'!Q56=5,('Credit Input'!$D$49+'Credit Input'!$E$49+'Credit Input'!$F$49+'Credit Input'!$G$49+'Credit Input'!$H$49),IF('Credit Input'!Q56=4,('Credit Input'!$D$49+'Credit Input'!$E$49+'Credit Input'!$F$49+'Credit Input'!$G$49),IF('Credit Input'!Q56=3,('Credit Input'!$D$49+'Credit Input'!$E$49+'Credit Input'!$F$49),IF('Credit Input'!Q56=2,('Credit Input'!$D$49+'Credit Input'!$E$49),'Credit Input'!$D$49))))))))) -> 0
A24: Value of Eligible Securities (BDT in Crore) | B24: =IF('Credit Input'!O56=10,('Credit Input'!$C$51),IF('Credit Input'!O56=9,('Credit Input'!$D$51+'Credit Input'!$E$51+'Credit Input'!$F$51+'Credit Input'!$G$51+'Credit Input'!$H$51+'Credit Input'!$I$51+'Credit Input'!$J$51+'Credit Input'!$K$51+'Credit Input'!$L$51),IF('Credit Input'!O56=8,('Credit Input'!$D$51+'Credit Input'!$E$51+'Credit Input'!$F$51+'Credit Input'!$G$51+'Credit Input'!$H$51+'Credit Input'!$I$51+'Credit Input'!$J$51+'Credit Input'!$K$51),IF('Credit Input'!O56=7,('Credit Input'!$D$51+'Credit Input'!$E$51+'Credit Input'!$F$51+'Credit Input'!$G$51+'Credit Input'!$H$51+'Credit Input'!$I$51+'Credit Input'!$J$51),IF('Credit Input'!O56=6,('Credit Input'!$D$51+'Credit Input'!$E$51+'Credit Input'!$F$51+'Credit Input'!$G$51+'Credit Input'!$H$51+'Credit Input'!$I$51),IF('Credit Input'!O56=5,('Credit Input'!$D$51+'Credit Input'!$E$51+'Credit Input'!$F$51+'Credit Input'!$G$51+'Credit Input'!$H$51),IF('Credit Input'!O56=4,('Credit Input'!$D$51+'Credit Input'!$E$51+'Credit Input'!$F$51+'Credit Input'!$G$51),IF('Credit Input'!O56=3,('Credit Input'!$D$51+'Credit Input'!$E$51+'Credit Input'!$F$51),IF('Credit Input'!O56=2,('Credit Input'!$D$51+'Credit Input'!$E$51),'Credit Input'!$D$51))))))))) -> 0 | C24: =IF('Credit Input'!P56=10,('Credit Input'!$C$51),IF('Credit Input'!P56=9,('Credit Input'!$D$51+'Credit Input'!$E$51+'Credit Input'!$F$51+'Credit Input'!$G$51+'Credit Input'!$H$51+'Credit Input'!$I$51+'Credit Input'!$J$51+'Credit Input'!$K$51+'Credit Input'!$L$51),IF('Credit Input'!P56=8,('Credit Input'!$D$51+'Credit Input'!$E$51+'Credit Input'!$F$51+'Credit Input'!$G$51+'Credit Input'!$H$51+'Credit Input'!$I$51+'Credit Input'!$J$51+'Credit Input'!$K$51),IF('Credit Input'!P56=7,('Credit Input'!$D$51+'Credit Input'!$E$51+'Credit Input'!$F$51+'Credit Input'!$G$51+'Credit Input'!$H$51+'Credit Input'!$I$51+'Credit Input'!$J$51),IF('Credit Input'!P56=6,('Credit Input'!$D$51+'Credit Input'!$E$51+'Credit Input'!$F$51+'Credit Input'!$G$51+'Credit Input'!$H$51+'Credit Input'!$I$51),IF('Credit Input'!P56=5,('Credit Input'!$D$51+'Credit Input'!$E$51+'Credit Input'!$F$51+'Credit Input'!$G$51+'Credit Input'!$H$51),IF('Credit Input'!P56=4,('Credit Input'!$D$51+'Credit Input'!$E$51+'Credit Input'!$F$51+'Credit Input'!$G$51),IF('Credit Input'!P56=3,('Credit Input'!$D$51+'Credit Input'!$E$51+'Credit Input'!$F$51),IF('Credit Input'!P56=2,('Credit Input'!$D$51+'Credit Input'!$E$51),'Credit Input'!$D$51))))))))) -> 0 | D24: =IF('Credit Input'!Q56=10,('Credit Input'!$C$51),IF('Credit Input'!Q56=9,('Credit Input'!$D$51+'Credit Input'!$E$51+'Credit Input'!$F$51+'Credit Input'!$G$51+'Credit Input'!$H$51+'Credit Input'!$I$51+'Credit Input'!$J$51+'Credit Input'!$K$51+'Credit Input'!$L$51),IF('Credit Input'!Q56=8,('Credit Input'!$D$51+'Credit Input'!$E$51+'Credit Input'!$F$51+'Credit Input'!$G$51+'Credit Input'!$H$51+'Credit Input'!$I$51+'Credit Input'!$J$51+'Credit Input'!$K$51),IF('Credit Input'!Q56=7,('Credit Input'!$D$51+'Credit Input'!$E$51+'Credit Input'!$F$51+'Credit Input'!$G$51+'Credit Input'!$H$51+'Credit Input'!$I$51+'Credit Input'!$J$51),IF('Credit Input'!Q56=6,('Credit Input'!$D$51+'Credit Input'!$E$51+'Credit Input'!$F$51+'Credit Input'!$G$51+'Credit Input'!$H$51+'Credit Input'!$I$51),IF('Credit Input'!Q56=5,('Credit Input'!$D$51+'Credit Input'!$E$51+'Credit Input'!$F$51+'Credit Input'!$G$51+'Credit Input'!$H$51),IF('Credit Input'!Q56=4,('Credit Input'!$D$51+'Credit Input'!$E$51+'Credit Input'!$F$51+'Credit Input'!$G$51),IF('Credit Input'!Q56=3,('Credit Input'!$D$51+'Credit Input'!$E$51+'Credit Input'!$F$51),IF('Credit Input'!Q56=2,('Credit Input'!$D$51+'Credit Input'!$E$51),'Credit Input'!$D$51))))))))) -> 0
A25: Increase in NPL(BDT in Crore) | B25: =B23*0.8 -> 0 | C25: =C23*0.8 -> 0 | D25: =D23*0.8 -> 0
A26: Increase in Provisions (after adjustment of eligible securities) (BDT in Crore) | B26: =(B23-B24)*0.8-B23*0.8*'Credit Input'!$C$61 -> 0 | C26: =(C23-C24)*0.8-C23*0.8*'Credit Input'!$C$61 -> 0 | D26: =(D23-D24)*0.8-D23*0.8*'Credit Input'!$C$61 -> 0
A28: Loans Total
A29: Magnitude of Shock | B29: =CONCATENATE("Top"," ",'Credit Input'!O56," ", "Borrowers") -> Top 3 Borrowers | C29: =CONCATENATE("Top"," ",'Credit Input'!P56," ", "Borrowers") -> Top 5 Borrowers | D29: =CONCATENATE("Top"," ",'Credit Input'!Q56," ", "Borrowers") -> Top 10 Borrowers
A30: Total Loans Disbursed to (BDT in Crore) | B30: =B17+B23 -> 0 | C30: =C17+C23 -> 0 | D30: =D17+D23 -> 0
A31: Increase in NPL(BDT in Crore) | B31: =B18+B25 -> 0 | C31: 0 | D31: 0
A32: Increase in Provisions (BDT in Crore) | B32: =IF((B19+B26)>=$B$13,(B19+B26)-$B$13,0) -> 0 | C32: =IF((C19+C26)>=$B$13,(C19+C26)-$B$13,0) -> 0 | D32: =IF((D19+D26)>=$B$13,(D19+D26)-$B$13,0) -> 0
A33: Revised Capital(BDT in Crore) | B33: =$B$5-B32 -> 0 | C33: =$B$5-C32 -> 0 | D33: =$B$5-D32 -> 0
A34: Revised Risk Weighted Assets(BDT in Crore) | B34: =$B$6-B32 -> 0 | C34: =$B$6-C32 -> 0 | D34: =$B$6-D32 -> 0
A35: Revised CAR | B35: =IF(B34<>0,B33/B34,0) -> 0 | C35: =IF(C34<>0,C33/C34,0) -> 0 | D35: =IF(D34<>0,D33/D34,0) -> 0

Sheet Credit Risk-4
A1: Name of the Institution : | B1: =IF('Credit Input'!C1="","",'Credit Input'!C1) -> 
A2: Reporting Base Date: | B2: ='Credit Input'!C3 -> 00:00:00
A4: Basic Information
A5: Regulatory Capital (BDT in Crore ) | B5: ='Credit Input'!C8 -> 0 | E5: =VLOOKUP(22,'Credit Input'!$AB$17:$AT$38,2,FALSE) -> Trade and Commerce
A6: Risk Weigheted Assets (RWA) (BDT in Crore) | B6: ='Credit Input'!C9 -> 0
A7: Capital Adequacy Ratio (CAR) | B7: =IF(B6<>0,B5/B6,0) -> 0
A9: Particulars | B9: Sector of Highest Loan | C9: Sector of 2nd Highest Loan
B10: =VLOOKUP(22,'Credit Input'!$AB$17:$AT$38,2,FALSE) -> Trade and Commerce | C10: =VLOOKUP(21,'Credit Input'!$AB$17:$AT$38,2,FALSE) -> Garments and Knitwear | H10: =CONCATENATE("Loan Disbursed to", " ",VLOOKUP(22,'Credit Input'!$AB$17:$AT$38,2,FALSE)," ","Sector") -> Loan Disbursed to Trade and Commerce Sector
A11: Loan Disbursed to (BDT in Crore) | B11: =VLOOKUP(22,'Credit Input'!$AB$17:$AT$38,4,FALSE) -> 0 | C11: =VLOOKUP(21,'Credit Input'!$AB$17:$AT$38,4,FALSE) -> 0
A12: Total NPL (BDT in Crore) | B12: =IF(VLOOKUP(22,'Credit Input'!$AB$17:$AT$38,4,FALSE),((VLOOKUP(22,'Credit Input'!$AB$17:$AT$38,11,FALSE)+VLOOKUP(22,'Credit Input'!$AB$17:$AT$38,12,FALSE)+VLOOKUP(22,'Credit Input'!$AB$17:$AT$38,14,FALSE)+(VLOOKUP(22,'Credit Input'!$AB$17:$AT$38,15,FALSE)+(VLOOKUP(22,'Credit Input'!$AB$17:$AT$38,17,FALSE)+(VLOOKUP(22,'Credit Input'!$AB$17:$AT$38,18,FALSE)))))),0) -> 0 | C12: =IF(VLOOKUP(21,'Credit Input'!$AB$17:$AT$38,4,FALSE),((VLOOKUP(21,'Credit Input'!$AB$17:$AT$38,11,FALSE)+VLOOKUP(21,'Credit Input'!$AB$17:$AT$38,12,FALSE)+VLOOKUP(21,'Credit Input'!$AB$17:$AT$38,14,FALSE)+(VLOOKUP(21,'Credit Input'!$AB$17:$AT$38,15,FALSE)+(VLOOKUP(21,'Credit Input'!$AB$17:$AT$38,17,FALSE)+(VLOOKUP(21,'Credit Input'!$AB$17:$AT$38,18,FALSE)))))),0) -> 0
A13: Total STD with ES (BDT in Crore) | B13: =IF(VLOOKUP(22,'Credit Input'!$AB$17:$AT$38,4,FALSE),((VLOOKUP(22,'Credit Input'!$AB$17:$AT$38,5,FALSE))),0) -> 0 | C13: =IF(VLOOKUP(21,'Credit Input'!$AB$17:$AT$38,4,FALSE),((VLOOKUP(21,'Credit Input'!$AB$17:$AT$38,5,FALSE))),0) -> 0
A14: Total STD without ES (BDT in Crore) | B14: =IF(VLOOKUP(22,'Credit Input'!$AB$17:$AT$38,4,FALSE),((VLOOKUP(22,'Credit Input'!$AB$17:$AT$38,6,FALSE))),0) -> 0 | C14: =IF(VLOOKUP(21,'Credit Input'!$AB$17:$AT$38,4,FALSE),((VLOOKUP(21,'Credit Input'!$AB$17:$AT$38,6,FALSE))),0) -> 0
A15: Value of Eligible Security Against STD (BDT in Crore) | B15: =IF(VLOOKUP(22,'Credit Input'!$AB$17:$AT$38,4,FALSE),((VLOOKUP(22,'Credit Input'!$AB$17:$AT$38,7,FALSE))),0) -> 0 | C15: =IF(VLOOKUP(21,'Credit Input'!$AB$17:$AT$38,4,FALSE),((VLOOKUP(21,'Credit Input'!$AB$17:$AT$38,7,FALSE))),0) -> 0
A16: Total SMA with ES (BDT in Crore) | B16: =IF(VLOOKUP(22,'Credit Input'!$AB$17:$AT$38,4,FALSE),((VLOOKUP(22,'Credit Input'!$AB$17:$AT$38,8,FALSE))),0) -> 0 | C16: =IF(VLOOKUP(21,'Credit Input'!$AB$17:$AT$38,4,FALSE),((VLOOKUP(21,'Credit Input'!$AB$17:$AT$38,8,FALSE))),0) -> 0
A17: Total SMA without ES (BDT in Crore) | B17: =IF(VLOOKUP(22,'Credit Input'!$AB$17:$AT$38,4,FALSE),((VLOOKUP(22,'Credit Input'!$AB$17:$AT$38,9,FALSE))),0) -> 0 | C17: =IF(VLOOKUP(21,'Credit Input'!$AB$17:$AT$38,4,FALSE),((VLOOKUP(21,'Credit Input'!$AB$17:$AT$38,9,FALSE))),0) -> 0
A18: Value of Eligible Security Against SMA (BDT in Crore) | B18: =IF(VLOOKUP(22,'Credit Input'!$AB$17:$AT$38,4,FALSE),((VLOOKUP(22,'Credit Input'!$AB$17:$AT$38,10,FALSE))),0) -> 0 | C18: =IF(VLOOKUP(21,'Credit Input'!$AB$17:$AT$38,4,FALSE),((VLOOKUP(21,'Credit Input'!$AB$17:$AT$38,10,FALSE))),0) -> 0
A19: Current Provisions (BDT in Crore) | B19: =(('Credit Input'!D43+'Credit Input'!E43)*'Credit Input'!C61+('Credit Input'!G43+'Credit Input'!H43)*'Credit Input'!D61+('Credit Input'!J43+'Credit Input'!K43-'Credit Input'!L43)*'Credit Input'!E61+('Credit Input'!M43+'Credit Input'!N43-'Credit Input'!O43)*'Credit Input'!F61+('Credit Input'!P43+'Credit Input'!Q43-'Credit Input'!R43)*'Credit Input'!G61) -> 0
A20: Provision Surplus/Shortfall (BDT in Crore) | B20: ='Credit Input'!C11 -> 0
A21: NPL to Loans | B21: =IF(SUM(B11:C11)<>0,(SUM(B12:C12))/(SUM(B11:C11)),0) -> 0
A23: Magnitude of Shock | B23: ='Credit Input'!L56 -> 0.05 | C23: ='Credit Input'!M56 -> 0.1 | D23: ='Credit Input'!N56 -> 0.15
A24: Increase in NPL(BDT in Crore) | B24: =($B$13+$B$14+$B$16+$B$17+$C$13+$C$14+$C$16+$C$17)*B23 -> 0 | C24: =($B$13+$B$14+$B$16+$B$17+$C$13+$C$14+$C$16+$C$17)*C23 -> 0 | D24: =($B$13+$B$14+$B$16+$B$17+$C$13+$C$14+$C$16+$C$17)*D23 -> 0
A25: Revised NPL(BDT in Crore) | B25: =$B$12+$C$12+B24 -> 0 | C25: =$B$12+$C$12+C24 -> 0 | D25: =$B$12+$C$12+D24 -> 0
A26: Revised NPL to Loans Ratio | B26: =IF(SUM($B$11:$C$11)<>0,(B25)/(SUM($B$11:$C$11)),0) -> 0 | C26: =IF(SUM($B$11:$C$11)<>0,(C25)/(SUM($B$11:$C$11)),0) -> 0 | D26: =IF(SUM($B$11:$C$11)<>0,(D25)/(SUM($B$11:$C$11)),0) -> 0 | E26: =(B25)/165 -> 0
A27: Extra Provision for Loans without ES (BDT in Crore) | B27: =($B$14+$C$14+$B$17+$C$17)*B23-($B$14*'Credit Input'!$C$61+$C$14*'Credit Input'!$C$61+$B$17*'Credit Input'!$D$61+$C$17*'Credit Input'!$D$61)*B23 -> 0 | C27: =($B$14+$C$14+$B$17+$C$17)*C23-($B$14*'Credit Input'!$C$61+$C$14*'Credit Input'!$C$61+$B$17*'Credit Input'!$D$61+$C$17*'Credit Input'!$D$61)*C23 -> 0 | D27: =($B$14+$C$14+$B$17+$C$17)*D23-($B$14*'Credit Input'!$C$61+$C$14*'Credit Input'!$C$61+$B$17*'Credit Input'!$D$61+$C$17*'Credit Input'!$D$61)*D23 -> 0
A28: Extra Provision for Loans with ES (BDT in Crore) | B28: =($B$13+$C$13+$B$16+$C$16-$B$15-$C$15-$B$18-$C$18)*B23-($B$13*'Credit Input'!$C$61+$C$13*'Credit Input'!$C$61+$B$16*'Credit Input'!$D$61+$C$16*'Credit Input'!$D$61)*B23 -> 0 | C28: =($B$13+$C$13+$B$16+$C$16-$B$15-$C$15-$B$18-$C$18)*C23-($B$13*'Credit Input'!$C$61+$C$13*'Credit Input'!$C$61+$B$16*'Credit Input'!$D$61+$C$16*'Credit Input'!$D$61)*C23 -> 0 | D28: =($B$13+$C$13+$B$16+$C$16-$B$15-$C$15-$B$18-$C$18)*D23-($B$13*'Credit Input'!$C$61+$C$13*'Credit Input'!$C$61+$B$16*'Credit Input'!$D$61+$C$16*'Credit Input'!$D$61)*D23 -> 0
A29: Increase in Provisions | B29: =IF((B27+B28)>=$B$20,(B27+B28)-$B$20,0) -> 0 | C29: =IF((C27+C28)>=$B$20,(C27+C28)-$B$20,0) -> 0 | D29: =IF((D27+D28)>=$B$20,(D27+D28)-$B$20,0) -> 0
A30: Revised Capital(BDT in Crore) | B30: =$B$5-B29 -> 0 | C30: =$B$5-C29 -> 0 | D30: =$B$5-D29 -> 0
A31: Revised Risk Weighted Assets(BDT in Crore) | B31: =$B$6-B29 -> 0 | C31: =$B$6-C29 -> 0 | D31: =$B$6-D29 -> 0
A32: Revised CAR | B32: =IF(B31<>0,B30/B31,0) -> 0 | C32: =IF(C31<>0,C30/C31,0) -> 0 | D32: =IF(D31<>0,D30/D31,0) -> 0

Sheet Credit Risk-3
A1: Name of the Institution : | B1: =IF('Credit Input'!C1="","",'Credit Input'!C1) -> 
A2: Reporting Base Date: | B2: ='Credit Input'!C3 -> 00:00:00
A4: Required Information
A5: Regulatory Capital (BDT in Crore ) | B5: ='Credit Input'!C8 -> 0
A6: Risk Weigheted Assets (RWA) (BDT in Crore) | B6: ='Credit Input'!C9 -> 0
A7: Capital Adequacy Ratio (CAR) | B7: =IF(B6<>0,B5/B6,0) -> 0
A8: VES for SS Loan (BDT in Crore) | B8: ='Credit Input'!L43 -> 0
A9: VES for DF Loan (BDT in Crore) | B9: ='Credit Input'!O43 -> 0
A10: VES for BL Loan (BDT in Crore) | B10: ='Credit Input'!R43 -> 0
A11: Current Provisions (BDT in Crore) | B11: =(('Credit Input'!D43+'Credit Input'!E43)*'Credit Input'!C61+('Credit Input'!G43+'Credit Input'!H43)*'Credit Input'!D61+('Credit Input'!J43+'Credit Input'!K43-'Credit Input'!L43)*'Credit Input'!E61+('Credit Input'!M43+'Credit Input'!N43-'Credit Input'!O43)*'Credit Input'!F61+('Credit Input'!P43+'Credit Input'!Q43-'Credit Input'!R43)*'Credit Input'!G61) -> 0
A12: Provision Surplus/Shortfall (BDT in Crore) | B12: ='Credit Input'!C11 -> 0
A15: Magnitude of Shock | B15: ='Credit Input'!I56 -> 0.1 | C15: ='Credit Input'!J56 -> 0.25 | D15: ='Credit Input'!K56 -> 0.5
A16: Weighted Amount of Eligible Securities (BDT in Crore) | B16: =$B$8*'Credit Input'!$E$61+$B$9*'Credit Input'!$F$61+$B$10*'Credit Input'!$G$61 -> 0 | C16: =$B$8*'Credit Input'!$E$61+$B$9*'Credit Input'!$F$61+$B$10*'Credit Input'!$G$61 -> 0 | D16: =$B$8*'Credit Input'!$E$61+$B$9*'Credit Input'!$F$61+$B$10*'Credit Input'!$G$61 -> 0
A17: Increase in Provisions (BDT in Crore) | B17: =IF(($B$8*B15*'Credit Input'!$E$61+$B$9*B15*'Credit Input'!$F$61+$B$10*B15*'Credit Input'!$G$61)>=$B$12,($B$8*B15*'Credit Input'!$E$61+$B$9*B15*'Credit Input'!$F$61+$B$10*B15*'Credit Input'!$G$61)-$B$12,0) -> 0 | C17: =IF(($B$8*C15*'Credit Input'!$E$61+$B$9*C15*'Credit Input'!$F$61+$B$10*C15*'Credit Input'!$G$61)>=$B$12,($B$8*C15*'Credit Input'!$E$61+$B$9*C15*'Credit Input'!$F$61+$B$10*C15*'Credit Input'!$G$61)-$B$12,0) -> 0 | D17: =IF(($B$8*D15*'Credit Input'!$E$61+$B$9*D15*'Credit Input'!$F$61+$B$10*D15*'Credit Input'!$G$61)>=$B$12,($B$8*D15*'Credit Input'!$E$61+$B$9*D15*'Credit Input'!$F$61+$B$10*D15*'Credit Input'!$G$61)-$B$12,0) -> 0
A18: Revised Capital (BDT in Crore) | B18: =$B$5-B17 -> 0 | C18: =$B$5-C17 -> 0 | D18: =$B$5-D17 -> 0
A19: Revised Risk Weighted Assets (BDT in Crore) | B19: =$B$6-B17 -> 0 | C19: =$B$6-C17 -> 0 | D19: =$B$6-D17 -> 0
A20: Revised CAR % | B20: =IF(B19<>0,B18/B19,0) -> 0 | C20: =IF(C19<>0,C18/C19,0) -> 0 | D20: =IF(D19<>0,D18/D19,0) -> 0

Sheet Credit Risk-2
A1: Name of the Institution : | B1: =IF('Credit Input'!C1="","",'Credit Input'!C1) -> 
A2: Reporting Base Date: | B2: ='Credit Input'!C3 -> 00:00:00
A4: Basic Information
A5: Regulatory Capital (BDT in Crore ) | B5: ='Credit Input'!C8 -> 0
A6: Risk Weigheted Assets (BDT in Crore) | B6: ='Credit Input'!C9 -> 0
A7: Capital Adequacy Ratio (CAR) | B7: =IF(B6<>0,B5/B6,0) -> 0
A8: Current Provision (BDT in Crore) | B8: =(('Credit Input'!D43+'Credit Input'!E43)*'Credit Input'!C61+('Credit Input'!G43+'Credit Input'!H43)*'Credit Input'!D61+('Credit Input'!J43+'Credit Input'!K43-'Credit Input'!L43)*'Credit Input'!E61+('Credit Input'!M43+'Credit Input'!N43-'Credit Input'!O43)*'Credit Input'!F61+('Credit Input'!P43+'Credit Input'!Q43-'Credit Input'!R43)*'Credit Input'!G61) -> 0
A9: Provision Surplus/Shortfall | B9: ='Credit Input'!C11 -> 0
A12: Particulars | B12: STD | C12: SMA | D12: SS | E12: DF
A13: Loans with ES (BDT in Crore) | B13: ='Credit Input'!D43 -> 0 | C13: ='Credit Input'!G43 -> 0 | D13: ='Credit Input'!J43 -> 0 | E13: ='Credit Input'!M43 -> 0
A14: Loans without ES (BDT in Crore) | B14: ='Credit Input'!E43 -> 0 | C14: ='Credit Input'!H43 -> 0 | D14: ='Credit Input'!K43 -> 0 | E14: ='Credit Input'!N43 -> 0
A15: Value of Eligible Security (BDT in Crore) | B15: ='Credit Input'!F43 -> 0 | C15: ='Credit Input'!I43 -> 0 | D15: ='Credit Input'!L43 -> 0 | E15: ='Credit Input'!O43 -> 0
A18: Magnitude of Shock | B18: ='Credit Input'!F56 -> 0.05 | C18: ='Credit Input'!G56 -> 0.1 | D18: ='Credit Input'!H56 -> 0.15
A19: Extra Provisions for Loans without ES (BDT in Crore) | B19: =($B$14*'Credit Input'!$D$61+$C$14*'Credit Input'!$E$61+$D$14*'Credit Input'!$F$61+$E$14*'Credit Input'!$G$61)*B18-($B$14*'Credit Input'!$C$61+$C$14*'Credit Input'!$D$61+$D$14*'Credit Input'!$E$61+$E$14*'Credit Input'!$F$61)*B18 -> 0 | C19: =($B$14*'Credit Input'!$D$61+$C$14*'Credit Input'!$E$61+$D$14*'Credit Input'!$F$61+$E$14*'Credit Input'!$G$61)*C18-($B$14*'Credit Input'!$C$61+$C$14*'Credit Input'!$D$61+$D$14*'Credit Input'!$E$61+$E$14*'Credit Input'!$F$61)*C18 -> 0 | D19: =($B$14*'Credit Input'!$D$61+$C$14*'Credit Input'!$E$61+$D$14*'Credit Input'!$F$61+$E$14*'Credit Input'!$G$61)*D18-($B$14*'Credit Input'!$C$61+$C$14*'Credit Input'!$D$61+$D$14*'Credit Input'!$E$61+$E$14*'Credit Input'!$F$61)*D18 -> 0
A20: Extra Provisions for Loans with ES (BDT in Crore) | B20: =($B$13*'Credit Input'!$D$61+($C$13-$C$15)*'Credit Input'!$E$61+($D$13-$D$15)*'Credit Input'!$F$61+($E$13-$E$15)*'Credit Input'!$G$61)*B18-($B$13*'Credit Input'!$C$61+$C$13*'Credit Input'!$D$61+($D$13-$D$15)*'Credit Input'!$E$61+($E$13-$E$15)*'Credit Input'!$F$61)*B18 -> 0 | C20: =($B$13*'Credit Input'!$D$61+($C$13-$C$15)*'Credit Input'!$E$61+($D$13-$D$15)*'Credit Input'!$F$61+($E$13-$E$15)*'Credit Input'!$G$61)*C18-($B$13*'Credit Input'!$C$61+$C$13*'Credit Input'!$D$61+($D$13-$D$15)*'Credit Input'!$E$61+($E$13-$E$15)*'Credit Input'!$F$61)*C18 -> 0 | D20: =($B$13*'Credit Input'!$D$61+($C$13-$C$15)*'Credit Input'!$E$61+($D$13-$D$15)*'Credit Input'!$F$61+($E$13-$E$15)*'Credit Input'!$G$61)*D18-($B$13*'Credit Input'!$C$61+$C$13*'Credit Input'!$D$61+($D$13-$D$15)*'Credit Input'!$E$61+($E$13-$E$15)*'Credit Input'!$F$61)*D18 -> 0
A21: Increase in Provisions (BDT in Crore) | B21: =IF((B19+B20)>=$B$9,B19+B20-$B$9,0) -> 0 | C21: =IF((C19+C20)>=$B$9,C19+C20-$B$9,0) -> 0 | D21: =IF((D19+D20)>=$B$9,D19+D20-$B$9,0) -> 0
A22: Revised Capital (BDT in Crore) | B22: =$B$5-B21 -> 0 | C22: =$B$5-C21 -> 0 | D22: =$B$5-D21 -> 0
A23: Revised Risk Weighted Assets (BDT in Crore) | B23: =$B$6-B21 -> 0 | C23: =$B$6-C21 -> 0 | D23: =$B$6-D21 -> 0
A24: Revised CAR % | B24: =IF(B23<>0,B22/B23,0) -> 0 | C24: =IF(C23<>0,C22/C23,0) -> 0 | D24: =IF(D23<>0,D22/D23,0) -> 0

Sheet Credit Risk-1
A1: Name of the Institution : | B1: =IF('Credit Input'!C1="","",'Credit Input'!C1) -> 
A2: Reporting Base Date: | B2: ='Credit Input'!C3 -> 00:00:00
A4: Basic Information
A5: Regulatory Capital (BDT in Crore ) | B5: ='Credit Input'!C8 -> 0
A6: Risk Weigheted Assets (RWA) (BDT in Crore) | B6: ='Credit Input'!C9 -> 0
A7: Capital Adequacy Ratio (CAR) | B7: =IF(B6<>0,B5/B6,0) -> 0
A9: Required Information
A10: Total Loan (BDT in Crore) | B10: ='Credit Input'!C43 -> 0
A11: Total NPL (BDT in Crore) | B11: =SUM('Credit Input'!J43:K43,'Credit Input'!M43:N43,'Credit Input'!P43:Q43) -> 0
A12: Total STD Loan with ES (BDT in Crore) | B12: ='Credit Input'!D43 -> 0
A13: Total STD Loan without ES (BDT in Crore) | B13: ='Credit Input'!E43 -> 0
A14: Value of Eligible Security Against STD (BDT in Crore) | B14: ='Credit Input'!F43 -> 0
A15: Total SMA Loan with ES (BDT in Crore) | B15: ='Credit Input'!G43 -> 0
A16: Total SMA Loan without ES (BDT in Crore) | B16: ='Credit Input'!H43 -> 0
A17: Value of Eligible Security Against SMA (BDT in Crore) | B17: ='Credit Input'!I43 -> 0
A18: Current Provisions (BDT in Crore) | B18: =(('Credit Input'!D43+'Credit Input'!E43)*'Credit Input'!C61+('Credit Input'!G43+'Credit Input'!H43)*'Credit Input'!D61+('Credit Input'!J43+'Credit Input'!K43-'Credit Input'!L43)*'Credit Input'!E61+('Credit Input'!M43+'Credit Input'!N43-'Credit Input'!O43)*'Credit Input'!F61+('Credit Input'!P43+'Credit Input'!Q43-'Credit Input'!R43)*'Credit Input'!G61) -> 0
A19: Provision Surplus/Shortfall | B19: ='Credit Input'!C11 -> 0
A20: NPL to Loans | B20: =IF(B10<>0,B11/B10,0) -> 0
A22: Result
A23: Magnitude of Shock | B23: ='Credit Input'!C56 -> 0.02 | C23: ='Credit Input'!D56 -> 0.05 | D23: ='Credit Input'!E56 -> 0.1
A24: Increase in NPL (BDT in Crore) | B24: =($B$12+$B$13+$B$15+$B$16)*B23 -> 0 | C24: =($B$12+$B$13+$B$15+$B$16)*C23 -> 0 | D24: =($B$12+$B$13+$B$15+$B$16)*D23 -> 0
A25: Revised NPL (BDT in Crore) | B25: =$B$11+B24 -> 0 | C25: =$B$11+C24 -> 0 | D25: =$B$11+D24 -> 0
A26: Revised NPL to Loans Ratio | B26: =IF($B$10<>0,B25/$B$10,0) -> 0 | C26: =IF($B$10<>0,C25/$B$10,0) -> 0 | D26: =IF($B$10<>0,D25/$B$10,0) -> 0
A27: Extra Provisions for Loans without ES (BDT in Crore) | B27: =($B$13+$B$16)*B23-($B$13*'Credit Input'!$C$61+$B$16*'Credit Input'!$D$61)*B23 -> 0 | C27: =($B$13+$B$16)*C23-($B$13*'Credit Input'!$C$61+$B$16*'Credit Input'!$D$61)*C23 -> 0 | D27: =($B$13+$B$16)*D23-($B$13*'Credit Input'!$C$61+$B$16*'Credit Input'!$D$61)*D23 -> 0
A28: Extra Provisions for Loans with ES (BDT in Crore) | B28: =($B$12+$B$15-$B$14-$B$17)*B23-($B$12*'Credit Input'!$C$61+$B$15*'Credit Input'!$D$61)*B23 -> 0 | C28: =($B$12+$B$15-$B$14-$B$17)*C23-($B$12*'Credit Input'!$C$61+$B$15*'Credit Input'!$D$61)*C23 -> 0 | D28: =($B$12+$B$15-$B$14-$B$17)*D23-($B$12*'Credit Input'!$C$61+$B$15*'Credit Input'!$D$61)*D23 -> 0
A29: Increase in Provisions (BDT in Crore) | B29: =IF((B27+B28)>=$B$19,B27+B28-$B$19,0) -> 0 | C29: =IF((C27+C28)>=$B$19,C27+C28-$B$19,0) -> 0 | D29: =IF((D27+D28)>=$B$19,D27+D28-$B$19,0) -> 0
A30: Revised Capital (BDT in Crore) | B30: =$B$5-B29 -> 0 | C30: =$B$5-C29 -> 0 | D30: =$B$5-D29 -> 0
A31: Revised Risk Weighted Assets (BDT in Crore) | B31: =$B$6-B29 -> 0 | C31: =$B$6-C29 -> 0 | D31: =$B$6-D29 -> 0
A32: Revised CAR | B32: =IF(B31<>0,B30/B31,0) -> 0 | C32: =IF(C31<>0,C30/C31,0) -> 0 | D32: =IF(D31<>0,D30/D31,0) -> 0

Sheet Interest Rate Input (hidden)
A1: Name of the Institution : | B1: =IF('Credit Input'!C1="","",'Credit Input'!C1) -> 
A2: Reporting Base Date: | B2: ='Credit Input'!C3 -> 00:00:00
J4: (Amount in crore)
A5: Particulars | B5: Projected Figure
B6: 1 to 30/31 day (One month) | C6: Over 1 month to 2 months | D6: Over 2 months to 3 months | E6: Over 3 months to 6 months | F6: Over 6 months to 1 year | G6: Over 1 year to 3 years | H6: Over 3 years to 5 years | I6: Over 5 years | J6: Total
A7: 1 | B7: 2 | C7: 3 | D7: 4 | E7: 5 | F7: 6 | G7: 7 | H7: 8 | I7: 9 | J7: 10
A8: A. Rate SENSITIVE LIABILITIES
A9: 1. Notes, bonds & debentures | B9: =SUM(B10:B11) -> 0 | C9: =SUM(C10:C11) -> 0 | D9: 0 | E9: 0 | F9: 0 | G9: 0 | H9: 0 | I9: 0 | J9: 0
A10: (a) Plain vanilla bonds/debentures | B10: ='Liquidity Input'!B14 -> 0 | C10: ='Liquidity Input'!C14 -> 0 | D10: ='Liquidity Input'!D14 -> 0 | E10: ='Liquidity Input'!E14 -> 0 | F10: ='Liquidity Input'!F14 -> 0 | G10: ='Liquidity Input'!G14 -> 0 | H10: ='Liquidity Input'!H14 -> 0 | I10: ='Liquidity Input'!I14 -> 0 | J10: =SUM(B10:I10) -> 0
A11: (b) Bonds/debentures with embedded options | B11: ='Liquidity Input'!B15 -> 0 | C11: ='Liquidity Input'!C15 -> 0 | D11: ='Liquidity Input'!D15 -> 0 | E11: ='Liquidity Input'!E15 -> 0 | F11: ='Liquidity Input'!F15 -> 0 | G11: ='Liquidity Input'!G15 -> 0 | H11: ='Liquidity Input'!H15 -> 0 | I11: ='Liquidity Input'!I15 -> 0 | J11: =SUM(B11:I11) -> 0
A12: 2. Deposits | B12: =SUM(B13:B14) -> 0 | C12: =SUM(C13:C14) -> 0 | D12: 0 | E12: 0 | F12: 0 | G12: 0 | H12: 0 | I12: 0 | J12: 0
A13: (a) Term deposits from public | B13: ='Liquidity Input'!B17 -> 0 | C13: ='Liquidity Input'!C17 -> 0 | D13: ='Liquidity Input'!D17 -> 0 | E13: ='Liquidity Input'!E17 -> 0 | F13: ='Liquidity Input'!F17 -> 0 | G13: ='Liquidity Input'!G17 -> 0 | H13: ='Liquidity Input'!H17 -> 0 | I13: ='Liquidity Input'!I17 -> 0 | J13: =SUM(B13:I13) -> 0
A14: (b) Term deposits from Banks/Fls | B14: ='Liquidity Input'!B18 -> 0 | C14: ='Liquidity Input'!C18 -> 0 | D14: ='Liquidity Input'!D18 -> 0 | E14: ='Liquidity Input'!E18 -> 0 | F14: ='Liquidity Input'!F18 -> 0 | G14: ='Liquidity Input'!G18 -> 0 | H14: ='Liquidity Input'!H18 -> 0 | I14: ='Liquidity Input'!I18 -> 0 | J14: =SUM(B14:I14) -> 0
A15: 3. Bank borrowings | B15: =SUM(B16:B17) -> 0 | C15: =SUM(C16:C17) -> 0 | D15: 0 | E15: 0 | F15: 0 | G15: 0 | H15: 0 | I15: 0 | J15: 0
A16: (a) SOD | B16: ='Liquidity Input'!B20 -> 0 | C16: ='Liquidity Input'!C20 -> 0 | D16: ='Liquidity Input'!D20 -> 0 | E16: ='Liquidity Input'!E20 -> 0 | F16: ='Liquidity Input'!F20 -> 0 | G16: ='Liquidity Input'!G20 -> 0 | H16: ='Liquidity Input'!H20 -> 0 | I16: ='Liquidity Input'!I20 -> 0 | J16: =SUM(B16:I16) -> 0
A17: (b) Long term loans | B17: ='Liquidity Input'!B21 -> 0 | C17: ='Liquidity Input'!C21 -> 0 | D17: ='Liquidity Input'!D21 -> 0 | E17: ='Liquidity Input'!E21 -> 0 | F17: ='Liquidity Input'!F21 -> 0 | G17: ='Liquidity Input'!G21 -> 0 | H17: ='Liquidity Input'!H21 -> 0 | I17: ='Liquidity Input'!I21 -> 0 | J17: =SUM(B17:I17) -> 0
A18: A. TOTAL RATE SENSITIVE LIABILITIES (A) | B18: =SUM(B9,B12,B15) -> 0 | C18: =SUM(C9,C12,C15) -> 0 | D18: 0 | E18: 0 | F18: 0 | G18: 0 | H18: 0 | I18: 0 | J18: 0
A19: B. RATE SENSITIVE ASSETS
A20: 1. Balances with banks (Except Current A/C) | B20: =SUM(B21:B22) -> 0 | C20: =SUM(C21:C22) -> 0 | D20: 0 | E20: 0 | F20: 0 | G20: 0 | H20: 0 | I20: 0 | J20: 0
A21: (a) Deposit/Short-term deposits | B21: ='Liquidity Input'!B39 -> 0 | C21: ='Liquidity Input'!C39 -> 0 | D21: ='Liquidity Input'!D39 -> 0 | E21: ='Liquidity Input'!E39 -> 0 | F21: ='Liquidity Input'!F39 -> 0 | G21: ='Liquidity Input'!G39 -> 0 | H21: ='Liquidity Input'!H39 -> 0 | I21: ='Liquidity Input'!I39 -> 0 | J21: =SUM(B21:I21) -> 0
A22: (b) Money at call & short notice | B22: ='Liquidity Input'!B40 -> 0 | C22: ='Liquidity Input'!C40 -> 0 | D22: ='Liquidity Input'!D40 -> 0 | E22: ='Liquidity Input'!E40 -> 0 | F22: ='Liquidity Input'!F40 -> 0 | G22: ='Liquidity Input'!G40 -> 0 | H22: ='Liquidity Input'!H40 -> 0 | I22: ='Liquidity Input'!I40 -> 0 | J22: =SUM(B22:I22) -> 0
A23: 2. Investments | B23: =B24 -> 0 | C23: =C24 -> 0 | D23: 0 | E23: 0 | F23: 0 | G23: 0 | H23: 0 | I23: 0 | J23: 0
A24: (a) Investments in Bonds & Securities | B24: ='Liquidity Input'!B42 -> 0 | C24: ='Liquidity Input'!C42 -> 0 | D24: ='Liquidity Input'!D42 -> 0 | E24: ='Liquidity Input'!E42 -> 0 | F24: ='Liquidity Input'!F42 -> 0 | G24: ='Liquidity Input'!G42 -> 0 | H24: ='Liquidity Input'!H42 -> 0 | I24: ='Liquidity Input'!I42 -> 0 | J24: =SUM(B24:I24) -> 0
A25: 3. lease Finance & Loans (performing) | B25: =SUM(B26:B29) -> 0 | C25: =SUM(C26:C29) -> 0 | D25: 0 | E25: 0 | F25: 0 | G25: 0 | H25: 0 | I25: 0 | J25: 0
A26: (a) Lease finance | B26: ='Liquidity Input'!B45 -> 0 | C26: ='Liquidity Input'!C45 -> 0 | D26: ='Liquidity Input'!D45 -> 0 | E26: ='Liquidity Input'!E45 -> 0 | F26: ='Liquidity Input'!F45 -> 0 | G26: ='Liquidity Input'!G45 -> 0 | H26: ='Liquidity Input'!H45 -> 0 | I26: ='Liquidity Input'!I45 -> 0 | J26: =SUM(B26:I26) -> 0
A27: (b) Home Loan | B27: ='Liquidity Input'!B46 -> 0 | C27: ='Liquidity Input'!C46 -> 0 | D27: ='Liquidity Input'!D46 -> 0 | E27: ='Liquidity Input'!E46 -> 0 | F27: ='Liquidity Input'!F46 -> 0 | G27: ='Liquidity Input'!G46 -> 0 | H27: ='Liquidity Input'!H46 -> 0 | I27: ='Liquidity Input'!I46 -> 0 | J27: =SUM(B27:I27) -> 0
A28: (c) Term loan | B28: ='Liquidity Input'!B47 -> 0 | C28: ='Liquidity Input'!C47 -> 0 | D28: ='Liquidity Input'!D47 -> 0 | E28: ='Liquidity Input'!E47 -> 0 | F28: ='Liquidity Input'!F47 -> 0 | G28: ='Liquidity Input'!G47 -> 0 | H28: ='Liquidity Input'!H47 -> 0 | I28: ='Liquidity Input'!I47 -> 0 | J28: =SUM(B28:I28) -> 0
A29: (d) Corporate loans/short term loans | B29: ='Liquidity Input'!B48 -> 0 | C29: ='Liquidity Input'!C48 -> 0 | D29: ='Liquidity Input'!D48 -> 0 | E29: ='Liquidity Input'!E48 -> 0 | F29: ='Liquidity Input'!F48 -> 0 | G29: ='Liquidity Input'!G48 -> 0 | H29: ='Liquidity Input'!H48 -> 0 | I29: ='Liquidity Input'!I48 -> 0 | J29: =SUM(B29:I29) -> 0
A30: B. TOTAL RATE SENSITIVE ASSETS (B) | B30: =SUM(B20,B23,B25) -> 0 | C30: =SUM(C20,C23,C25) -> 0 | D30: 0 | E30: 0 | F30: 0 | G30: 0 | H30: 0 | I30: 0 | J30: 0
A31: C. MISMATCH (B-A) | B31: =B30-B18 -> 0 | C31: =C30-C18 -> 0 | D31: 0 | E31: 0 | F31: 0 | G31: 0 | H31: 0 | I31: 0 | J31: 0
A32: D. CUMULATIVE MISMATCH | B32: =B31 -> 0 | C32: =B32+C31 -> 0 | D32: =C32+D31 -> 0 | E32: 0 | F32: 0 | G32: 0 | H32: 0 | I32: 0
A33: E. C AS PERCENTAGE OF A | B33: =IF(B18<>0,B31/B18,0) -> 0 | C33: =IF(C18<>0,C31/C18,0) -> 0 | D33: 0 | E33: 0 | F33: 0 | G33: 0 | H33: 0 | I33: 0 | J33: 0
A35: First Line of Defense (BDT Crore) | B35: 100
A36: Second Line of Defense (BDT Crore) | B36: 50
A40: SHOCKS | B40: Minor | C40: Moderate | D40: Major
B41: 0.03 | C41: 0.05 | D41: 0.06

Sheet Liquidity Input
A2: Name of the FI | B2: : | C2: =IF('Credit Input'!C1="","",'Credit Input'!C1) -> 
A3: Reporting Base Date | B3: : | C3: ='Credit Input'!C3 -> 00:00:00
I4: (Amount in crore)
A5: Particulars
B6: 1 to 30/31 day (One month) | C6: Over 1 month to 2 months | D6: Over 2 months to 3 months | E6: Over 3 months to 6 months | F6: Over 6 months to 1 year | G6: Over 1 year to 3 years | H6: Over 3 years to 5 years | I6: Over 5 years | J6: Total
A7: 1 | B7: 2 | C7: 3 | D7: 4 | E7: 5 | F7: 6 | G7: 7 | H7: 8 | I7: 9 | J7: 10
A8: A. Outflows
A9: 1. Capital | B9: =SUM(B10:B11) -> 0 | C9: =SUM(C10:C11) -> 0 | D9: 0 | E9: 0 | F9: 0 | G9: 0 | H9: 0 | I9: 0 | J9: =SUM(B9:I9) -> 0
A10: (a) Equity and perpetual preference shares | J10: =SUM(B10:I10) -> 0
A11: (b) Non-perpetual preference shares | J11: =SUM(B11:I11) -> 0
A12: 2. Reserves and surplus | J12: =SUM(B12:I12) -> 0
A13: 3. Notes, bonds & debentures | B13: =SUM(B14:B15) -> 0 | C13: =SUM(C14:C15) -> 0 | D13: 0 | E13: 0 | F13: 0 | G13: 0 | H13: 0 | I13: 0 | J13: =SUM(B13:I13) -> 0
A14: (a) Plain vanilla bonds/debentures | J14: =SUM(B14:I14) -> 0
A15: (b) Bonds/debentures with embedded options | J15: 0
A16: 4. Deposits | B16: =SUM(B17:B18) -> 0 | C16: =SUM(C17:C18) -> 0 | D16: 0 | E16: 0 | F16: 0 | G16: 0 | H16: 0 | I16: 0 | J16: 0
A17: (a) Term deposits from public | J17: 0
A18: (b) Term deposits from Banks/Fls | J18: 0
A19: 5. Bank borrowings | B19: =SUM(B20:B21) -> 0 | C19: =SUM(C20:C21) -> 0 | D19: 0 | E19: 0 | F19: 0 | G19: 0 | H19: 0 | I19: 0 | J19: 0
A20: (a) SOD | J20: 0
A21: (b) Long term loans | J21: 0
A22: 6. Current liabilities and provisions | B22: =SUM(B23:B27) -> 0 | C22: =SUM(C23:C27) -> 0 | D22: 0 | E22: 0 | F22: 0 | G22: 0 | H22: 0 | I22: 0 | J22: 0
A23: (a) Short term loans | J23: 0
A24: (b) Accounts payable | J24: 0
A25: (c) Advance income received | J25: 0
A26: (d) Interest payable on bonds/deposits | J26: 0
A27: (e) Provisions | J27: 0
A28: 7. Contingent Liabilities | B28: =SUM(B29:B31) -> 0 | C28: =SUM(C29:C31) -> 0 | D28: 0 | E28: 0 | F28: 0 | G28: 0 | H28: 0 | I28: 0 | J28: 0
A29: (a) Letters of credit/guarantees | J29: 0
A30: (b) Loan commitments, pending disbursal | J30: 0
A31: (c) Lines of credit committed to other institutions | J31: 0
A32: 8. Others | J32: 0
A33: A. TOTAL OUTFLOWS (A) | B33: =SUM(B9,B12,B13,B16,B19,B22,B28,B32) -> 0 | C33: =SUM(C9,C12,C13,C16,C19,C22,C28,C32) -> 0 | D33: 0 | E33: 0 | F33: 0 | G33: 0 | H33: 0 | I33: 0 | J33: 0
A34: B. INFLOWS | J34: 0
A35: 1. Cash | J35: 0
A36: 2. Remittance in transit | J36: 0
A37: 3. Balances with banks | B37: =SUM(B38:B40) -> 0 | C37: =SUM(C38:C40) -> 0 | D37: 0 | E37: 0 | F37: 0 | G37: 0 | H37: 0 | I37: 0 | J37: 0
A38: (a) Current account | J38: 0
A39: (b) Deposit/Short-term deposits | J39: 0
A40: (c) Money at call & short notice | J40: 0
A41: 4. Investments | B41: =SUM(B42:B43) -> 0 | C41: =SUM(C42:C43) -> 0 | D41: 0 | E41: 0 | F41: 0 | G41: 0 | H41: 0 | I41: 0 | J41: 0
A42: (a) Investments in Bonds & Securities | J42: 0
A43: (a) Investments in Shares | J43: 0
A44: 5. lease Finance & Loans (performing) | B44: =SUM(B45:B48) -> 0 | C44: =SUM(C45:C48) -> 0 | D44: 0 | E44: 0 | F44: 0 | G44: 0 | H44: 0 | I44: 0 | J44: 0
A45: (a) Lease finance | J45: 0
A46: (b) Home Loan | J46: 0
A47: (c) Term loan | J47: 0
A48: (d) Corporate loans/short term loans | J48: 0
A49: 6. Non-performing loans | J49: 0
A50: 7. Fixed assets (excluding assets on lease) | J50: 0
A51: 8. Other Assets: | B51: =SUM(B52:B54) -> 0 | C51: =SUM(C52:C54) -> 0 | D51: 0 | E51: 0 | F51: 0 | G51: 0 | H51: 0 | I51: 0 | J51: 0
A52: (a) Intangible assets & other non-cash flow items | J52: 0
A53: (b) Interest and other Income receivable | J53: 0
A54: (c) Others | J54: 0
A55: 9. Others | J55: 0
A56: B. TOTAL INFLOWS (B) | B56: =SUM(B35,B36,B37,B41,B44,B49,B50,B51,B55) -> 0 | C56: =SUM(C35,C36,C37,C41,C44,C49,C50,C51,C55) -> 0 | D56: 0 | E56: 0 | F56: 0 | G56: 0 | H56: 0 | I56: 0 | J56: =SUM(B56:I56) -> 0
A57: C. MISMATCH (B-A) | B57: =B56-B33 -> 0 | C57: =C56-C33 -> 0 | D57: 0 | E57: 0 | F57: 0 | G57: 0 | H57: 0 | I57: 0 | J57: 0
A58: D. CUMULATIVE MISMATCH | B58: =B57 -> 0 | C58: =B58+C57 -> 0 | D58: =C58+D57 -> 0 | E58: 0 | F58: 0 | G58: 0 | H58: 0 | I58: 0
A59: E. C AS PERCENTAGE OF A | B59: =IF(B33<>0,B57/B33,0) -> 0 | C59: =IF(C33<>0,C57/C33,0) -> 0 | D59: 0 | E59: 0 | F59: 0 | G59: 0 | H59: 0 | I59: 0 | J59: 0
A61: Structure of the Bond Portfolio | B61: Face Value | C61: Present Value | D61: Settlement | E61: Maturity | F61: Coupon | G61: Yield | H61: Frequency | I61: Duration | J61: Remarks
C62: =IF(OR(J62="",B62=""),"",IF(J62="Asset",B62/100*PRICE(D62,E62,F62,G62,100,H62,1),-B62/100*PRICE(D62,E62,F62,G62,100,H62,1))) ->  | D62: =IF(B62="","",$C$3) ->  | I62: =IF(OR(D62="",E62="",F62="",G62="",H62=""),"",DURATION(D62,E62,F62,G62,H62,1)) ->  | O62: Asset
O63: Liability
N99: =IF(L99="Asset",1,0) -> 0 | O99: Liability
A102: Total/Average | B102: =SUM(B62:B101) -> 0 | C102: =SUM(C62:C101) -> 0 | I102: =IF(C102="","",IF(C102<>0,SUMPRODUCT(C62:C101,I62:I101)/$C$102,0)) -> 0
A104: First Line of Defense (BDT Crore) | C104: SOD
A105: Second Line of Defense (BDT Crore) | C105: short-term loan, commercial paper, bill discounting facility
A109: SHOCKS | B109: Minor | C109: Moderate | D109: Major
B110: 0.05 | C110: 0.07 | D110: 0.1

Sheet Credit Input
A1: Name of the Institution:
A2: Acronym of the name:
A3: Reporting Base Date:
A5: Table: 1 | B5: Basic Information
A6: Sl. No | B6: Particulars | C6: Amount in BDT Crore
A8: 1 | B8: Regulatory Capital
A9: 2 | B9: Risk Weighted Assets
A10: 3 | B10: CAR % | C10: =IF(C9<>0,C8/C9,0) -> 0
A11: 4 | B11: Provision Surplus/Shortfall*
B12: *Which is not adjusted in Regulatory Capital
A13: Table: 2 | B13: Sector Wise Credit Portfolio | AH13: =VLOOKUP(22,$AB$17:$AE$38,4,FALSE) -> 0
A14: Sl. No | B14: Particulars | C14: Amount in BDT Crore
C15: Total | D15: STD | G15: SMA | J15: SS | M15: DF | P15: BL | AF15: STD | AI15: SMA | AL15: SS | AO15: DF | AR15: BL
D16: Loans with ES | E16: Loans without ES | F16: Value of Eligible Security | G16: Loans with ES | H16: Loans without ES | I16: Value of Eligible Security | J16: Loans with ES | K16: Loans without ES | L16: Value of Eligible Security | M16: Loans with ES | N16: Loans without ES | O16: Value of Eligible Security | P16: Loans with ES | Q16: Loans without ES | R16: Value of Eligible Security | AB16: Place | AC16: Sector | AD16: R | AE16: Total | AF16: LES | AG16: L | AH16: ES | AI16: LES | AJ16: L | AK16: ES | AL16: LES | AM16: L | AN16: ES | AO16: LES | AP16: L | AQ16: ES | AR16: LES | AS16: L | AT16: ES | AU16: PL | AV16: NPL
A17: 1 | B17: Trade and Commerce | C17: =SUM(D17:E17,G17:H17,J17:K17,M17:N17,P17:Q17) -> 0 | AA17: Provision | AB17: =IF(AD17>AD17,1,0)+IF(AD17>AD18,1,0)+IF(AD17>AD19,1,0)+IF(AD17>AD20,1,0)+IF(AD17>AD21,1,0)+IF(AD17>AD22,1,0)+IF(AD17>AD23,1,0)+IF(AD17>AD24,1,0)+IF(AD17>AD25,1,0)+IF(AD17>AD26,1,0)+IF(AD17>AD27,1,0)+IF(AD17>AD28,1,0)+IF(AD17>AD29,1,0)+IF(AD17>AD30,1,0)+IF(AD17>AD31,1,0)+IF(AD17>AD32,1,0)+IF(AD17>AD33,1,0)+IF(AD17>AD34,1,0)+IF(AD17>AD35,1,0)+IF(AD17>AD36,1,0)+IF(AD17>AD37,1,0)+IF(AD17>AD38,1,0)+1 -> 22 | AC17: Trade and Commerce | AD17: =C17+0.22 -> 0.22 | AE17: =C17 -> 0 | AF17: 0 | AG17: 0 | AH17: 0 | AI17: 0 | AJ17: 0 | AK17: 0 | AL17: 0 | AM17: 0 | AN17: 0 | AO17: 0 | AP17: 0 | AQ17: 0 | AR17: 0 | AS17: 0 | AT17: 0 | AU17: =IF(VLOOKUP(22,'Credit Input'!$AB$17:$AT$38,4,FALSE),((VLOOKUP(22,'Credit Input'!$AB$17:$AT$38,9,FALSE)+VLOOKUP(22,'Credit Input'!$AB$17:$AT$38,11,FALSE)+VLOOKUP(22,'Credit Input'!$AB$17:$AT$38,13,FALSE))),0) -> 0
A18: 2 | B18: Industry | AA18: =(D43*C61+G43*D61+(J43-L43)*E61+(M43-O43)*F61+(P43-R43)) -> 0 | AB18: =IF(AD18>AD17,1,0)+IF(AD18>AD18,1,0)+IF(AD18>AD19,1,0)+IF(AD18>AD20,1,0)+IF(AD18>AD21,1,0)+IF(AD18>AD22,1,0)+IF(AD18>AD23,1,0)+IF(AD18>AD24,1,0)+IF(AD18>AD25,1,0)+IF(AD18>AD26,1,0)+IF(AD18>AD27,1,0)+IF(AD18>AD28,1,0)+IF(AD18>AD29,1,0)+IF(AD18>AD30,1,0)+IF(AD18>AD31,1,0)+IF(AD18>AD32,1,0)+IF(AD18>AD33,1,0)+IF(AD18>AD34,1,0)+IF(AD18>AD35,1,0)+IF(AD18>AD36,1,0)+IF(AD18>AD37,1,0)+IF(AD18>AD38,1,0)+1 -> 21 | AC18: Garments and Knitwear | AD18: =C19+0.21 -> 0.21 | AE18: =C19 -> 0 | AF18: 0 | AG18: 0 | AH18: 0 | AI18: 0 | AJ18: 0 | AK18: 0 | AL18: 0 | AM18: 0 | AN18: 0 | AO18: 0 | AP18: 0 | AQ18: 0 | AR18: 0 | AS18: 0 | AT18: 0
B19: A) Garments and Knitwear | C19: =SUM(D19:E19,G19:H19,J19:K19,M19:N19,P19:Q19) -> 0 | AB19: =IF(AD19>AD17,1,0)+IF(AD19>AD18,1,0)+IF(AD19>AD19,1,0)+IF(AD19>AD20,1,0)+IF(AD19>AD21,1,0)+IF(AD19>AD22,1,0)+IF(AD19>AD23,1,0)+IF(AD19>AD24,1,0)+IF(AD19>AD25,1,0)+IF(AD19>AD26,1,0)+IF(AD19>AD27,1,0)+IF(AD19>AD28,1,0)+IF(AD19>AD29,1,0)+IF(AD19>AD30,1,0)+IF(AD19>AD31,1,0)+IF(AD19>AD32,1,0)+IF(AD19>AD33,1,0)+IF(AD19>AD34,1,0)+IF(AD19>AD35,1,0)+IF(AD19>AD36,1,0)+IF(AD19>AD37,1,0)+IF(AD19>AD38,1,0)+1 -> 20 | AC19: Textile | AD19: =C20+0.2 -> 0.2 | AE19: =C20 -> 0 | AF19: =D20 -> 0 | AG19: =E20 -> 0 | AH19: =F20 -> 0 | AI19: =G20 -> 0 | AJ19: =H20 -> 0 | AK19: =I20 -> 0 | AL19: =J20 -> 0 | AM19: =K20 -> 0 | AN19: =L20 -> 0 | AO19: =M20 -> 0 | AP19: =N20 -> 0 | AQ19: =O20 -> 0 | AR19: =P20 -> 0 | AS19: =Q20 -> 0 | AT19: =R20 -> 0
B20: B) Textile | C20: 0 | AB20: =IF(AD20>AD17,1,0)+IF(AD20>AD18,1,0)+IF(AD20>AD19,1,0)+IF(AD20>AD20,1,0)+IF(AD20>AD21,1,0)+IF(AD20>AD22,1,0)+IF(AD20>AD23,1,0)+IF(AD20>AD24,1,0)+IF(AD20>AD25,1,0)+IF(AD20>AD26,1,0)+IF(AD20>AD27,1,0)+IF(AD20>AD28,1,0)+IF(AD20>AD29,1,0)+IF(AD20>AD30,1,0)+IF(AD20>AD31,1,0)+IF(AD20>AD32,1,0)+IF(AD20>AD33,1,0)+IF(AD20>AD34,1,0)+IF(AD20>AD35,1,0)+IF(AD20>AD36,1,0)+IF(AD20>AD37,1,0)+IF(AD20>AD38,1,0)+1 -> 19 | AC20: Jute and Jute-Products | AD20: =C21+0.19 -> 0.19 | AE20: 0 | AF20: 0 | AG20: 0 | AH20: 0 | AI20: 0 | AJ20: 0 | AK20: 0 | AL20: 0 | AM20: 0 | AN20: 0 | AO20: 0 | AP20: 0 | AQ20: 0 | AR20: 0 | AS20: 0 | AT20: 0
B21: C) Jute and Jute-Products | C21: 0 | AB21: =IF(AD21>AD17,1,0)+IF(AD21>AD18,1,0)+IF(AD21>AD19,1,0)+IF(AD21>AD20,1,0)+IF(AD21>AD21,1,0)+IF(AD21>AD22,1,0)+IF(AD21>AD23,1,0)+IF(AD21>AD24,1,0)+IF(AD21>AD25,1,0)+IF(AD21>AD26,1,0)+IF(AD21>AD27,1,0)+IF(AD21>AD28,1,0)+IF(AD21>AD29,1,0)+IF(AD21>AD30,1,0)+IF(AD21>AD31,1,0)+IF(AD21>AD32,1,0)+IF(AD21>AD33,1,0)+IF(AD21>AD34,1,0)+IF(AD21>AD35,1,0)+IF(AD21>AD36,1,0)+IF(AD21>AD37,1,0)+IF(AD21>AD38,1,0)+1 -> 18 | AC21: Food Production and Processing Ind. | AD21: =C22+0.18 -> 0.18 | AE21: 0 | AF21: 0 | AG21: 0 | AH21: 0 | AI21: 0 | AJ21: 0 | AK21: 0 | AL21: 0 | AM21: 0 | AN21: 0 | AO21: 0 | AP21: 0 | AQ21: 0 | AR21: 0 | AS21: 0 | AT21: 0
B22: D) Food Production and Processing Ind. | C22: 0 | AB22: =IF(AD22>AD17,1,0)+IF(AD22>AD18,1,0)+IF(AD22>AD19,1,0)+IF(AD22>AD20,1,0)+IF(AD22>AD21,1,0)+IF(AD22>AD22,1,0)+IF(AD22>AD23,1,0)+IF(AD22>AD24,1,0)+IF(AD22>AD25,1,0)+IF(AD22>AD26,1,0)+IF(AD22>AD27,1,0)+IF(AD22>AD28,1,0)+IF(AD22>AD29,1,0)+IF(AD22>AD30,1,0)+IF(AD22>AD31,1,0)+IF(AD22>AD32,1,0)+IF(AD22>AD33,1,0)+IF(AD22>AD34,1,0)+IF(AD22>AD35,1,0)+IF(AD22>AD36,1,0)+IF(AD22>AD37,1,0)+IF(AD22>AD38,1,0)+1 -> 17 | AC22: Plastic Industry | AD22: =C23+0.17 -> 0.17 | AE22: 0 | AF22: 0 | AG22: 0 | AH22: 0 | AI22: 0 | AJ22: 0 | AK22: 0 | AL22: 0 | AM22: 0 | AN22: 0 | AO22: 0 | AP22: 0 | AQ22: 0 | AR22: 0 | AS22: 0 | AT22: 0
B23: E) Plastic Industry | C23: 0 | AB23: =IF(AD23>AD17,1,0)+IF(AD23>AD18,1,0)+IF(AD23>AD19,1,0)+IF(AD23>AD20,1,0)+IF(AD23>AD21,1,0)+IF(AD23>AD22,1,0)+IF(AD23>AD23,1,0)+IF(AD23>AD24,1,0)+IF(AD23>AD25,1,0)+IF(AD23>AD26,1,0)+IF(AD23>AD27,1,0)+IF(AD23>AD28,1,0)+IF(AD23>AD29,1,0)+IF(AD23>AD30,1,0)+IF(AD23>AD31,1,0)+IF(AD23>AD32,1,0)+IF(AD23>AD33,1,0)+IF(AD23>AD34,1,0)+IF(AD23>AD35,1,0)+IF(AD23>AD36,1,0)+IF(AD23>AD37,1,0)+IF(AD23>AD38,1,0)+1 -> 16 | AC23: Leather and Leather-Goods | AD23: =C24+0.16 -> 0.16 | AE23: 0 | AF23: 0 | AG23: 0 | AH23: 0 | AI23: 0 | AJ23: 0 | AK23: 0 | AL23: 0 | AM23: 0 | AN23: 0 | AO23: 0 | AP23: 0 | AQ23: 0 | AR23: 0 | AS23: 0 | AT23: 0
B24: F) Leather and Leather-Goods | C24: 0 | AB24: =IF(AD24>AD17,1,0)+IF(AD24>AD18,1,0)+IF(AD24>AD19,1,0)+IF(AD24>AD20,1,0)+IF(AD24>AD21,1,0)+IF(AD24>AD22,1,0)+IF(AD24>AD23,1,0)+IF(AD24>AD24,1,0)+IF(AD24>AD25,1,0)+IF(AD24>AD26,1,0)+IF(AD24>AD27,1,0)+IF(AD24>AD28,1,0)+IF(AD24>AD29,1,0)+IF(AD24>AD30,1,0)+IF(AD24>AD31,1,0)+IF(AD24>AD32,1,0)+IF(AD24>AD33,1,0)+IF(AD24>AD34,1,0)+IF(AD24>AD35,1,0)+IF(AD24>AD36,1,0)+IF(AD24>AD37,1,0)+IF(AD24>AD38,1,0)+1 -> 15 | AC24: Iron, Steel and Engineering | AD24: =C25+0.15 -> 0.15 | AE24: 0 | AF24: 0 | AG24: 0 | AH24: 0 | AI24: 0 | AJ24: 0 | AK24: 0 | AL24: 0 | AM24: 0 | AN24: 0 | AO24: 0 | AP24: 0 | AQ24: 0 | AR24: 0 | AS24: 0 | AT24: 0
B25: G) Iron, Steel and Engineering | C25: 0 | AB25: =IF(AD25>AD17,1,0)+IF(AD25>AD18,1,0)+IF(AD25>AD19,1,0)+IF(AD25>AD20,1,0)+IF(AD25>AD21,1,0)+IF(AD25>AD22,1,0)+IF(AD25>AD23,1,0)+IF(AD25>AD24,1,0)+IF(AD25>AD25,1,0)+IF(AD25>AD26,1,0)+IF(AD25>AD27,1,0)+IF(AD25>AD28,1,0)+IF(AD25>AD29,1,0)+IF(AD25>AD30,1,0)+IF(AD25>AD31,1,0)+IF(AD25>AD32,1,0)+IF(AD25>AD33,1,0)+IF(AD25>AD34,1,0)+IF(AD25>AD35,1,0)+IF(AD25>AD36,1,0)+IF(AD25>AD37,1,0)+IF(AD25>AD38,1,0)+1 -> 14 | AC25: Pharmaceuticals and Chemicals | AD25: =C26+0.14 -> 0.14 | AE25: 0 | AF25: 0 | AG25: 0 | AH25: 0 | AI25: 0 | AJ25: 0 | AK25: 0 | AL25: 0 | AM25: 0 | AN25: 0 | AO25: 0 | AP25: 0 | AQ25: 0 | AR25: 0 | AS25: 0 | AT25: 0
B26: H) Pharmaceuticals and Chemicals | C26: 0 | AB26: =IF(AD26>AD17,1,0)+IF(AD26>AD18,1,0)+IF(AD26>AD19,1,0)+IF(AD26>AD20,1,0)+IF(AD26>AD21,1,0)+IF(AD26>AD22,1,0)+IF(AD26>AD23,1,0)+IF(AD26>AD24,1,0)+IF(AD26>AD25,1,0)+IF(AD26>AD26,1,0)+IF(AD26>AD27,1,0)+IF(AD26>AD28,1,0)+IF(AD26>AD29,1,0)+IF(AD26>AD30,1,0)+IF(AD26>AD31,1,0)+IF(AD26>AD32,1,0)+IF(AD26>AD33,1,0)+IF(AD26>AD34,1,0)+IF(AD26>AD35,1,0)+IF(AD26>AD36,1,0)+IF(AD26>AD37,1,0)+IF(AD26>AD38,1,0)+1 -> 13 | AC26: Cement and Allied Industry | AD26: =C27+0.13 -> 0.13 | AE26: 0 | AF26: 0 | AG26: 0 | AH26: 0 | AI26: 0 | AJ26: 0 | AK26: 0 | AL26: 0 | AM26: 0 | AN26: 0 | AO26: 0 | AP26: 0 | AQ26: 0 | AR26: 0 | AS26: 0 | AT26: 0
B27: I) Cement and Allied Industry | C27: 0 | AB27: =IF(AD27>AD17,1,0)+IF(AD27>AD18,1,0)+IF(AD27>AD19,1,0)+IF(AD27>AD20,1,0)+IF(AD27>AD21,1,0)+IF(AD27>AD22,1,0)+IF(AD27>AD23,1,0)+IF(AD27>AD24,1,0)+IF(AD27>AD25,1,0)+IF(AD27>AD26,1,0)+IF(AD27>AD27,1,0)+IF(AD27>AD28,1,0)+IF(AD27>AD29,1,0)+IF(AD27>AD30,1,0)+IF(AD27>AD31,1,0)+IF(AD27>AD32,1,0)+IF(AD27>AD33,1,0)+IF(AD27>AD34,1,0)+IF(AD27>AD35,1,0)+IF(AD27>AD36,1,0)+IF(AD27>AD37,1,0)+IF(AD27>AD38,1,0)+1 -> 12 | AC27: Telecommunication and IT | AD27: =C28+0.12 -> 0.12 | AE27: 0 | AF27: 0 | AG27: 0 | AH27: 0 | AI27: 0 | AJ27: 0 | AK27: 0 | AL27: 0 | AM27: 0 | AN27: 0 | AO27: 0 | AP27: 0 | AQ27: 0 | AR27: 0 | AS27: 0 | AT27: 0
B28: J) Telecommunication and IT | C28: 0 | AB28: =IF(AD28>AD17,1,0)+IF(AD28>AD18,1,0)+IF(AD28>AD19,1,0)+IF(AD28>AD20,1,0)+IF(AD28>AD21,1,0)+IF(AD28>AD22,1,0)+IF(AD28>AD23,1,0)+IF(AD28>AD24,1,0)+IF(AD28>AD25,1,0)+IF(AD28>AD26,1,0)+IF(AD28>AD27,1,0)+IF(AD28>AD28,1,0)+IF(AD28>AD29,1,0)+IF(AD28>AD30,1,0)+IF(AD28>AD31,1,0)+IF(AD28>AD32,1,0)+IF(AD28>AD33,1,0)+IF(AD28>AD34,1,0)+IF(AD28>AD35,1,0)+IF(AD28>AD36,1,0)+IF(AD28>AD37,1,0)+IF(AD28>AD38,1,0)+1 -> 11 | AC28: Paper, Printing and Packaging | AD28: =C29+0.11 -> 0.11 | AE28: 0 | AF28: 0 | AG28: 0 | AH28: 0 | AI28: 0 | AJ28: 0 | AK28: 0 | AL28: 0 | AM28: 0 | AN28: 0 | AO28: 0 | AP28: 0 | AQ28: 0 | AR28: 0 | AS28: 0 | AT28: 0
B29: k) Paper, Printing and Packaging | C29: 0 | AB29: =IF(AD29>AD17,1,0)+IF(AD29>AD18,1,0)+IF(AD29>AD19,1,0)+IF(AD29>AD20,1,0)+IF(AD29>AD21,1,0)+IF(AD29>AD22,1,0)+IF(AD29>AD23,1,0)+IF(AD29>AD24,1,0)+IF(AD29>AD25,1,0)+IF(AD29>AD26,1,0)+IF(AD29>AD27,1,0)+IF(AD29>AD28,1,0)+IF(AD29>AD29,1,0)+IF(AD29>AD30,1,0)+IF(AD29>AD31,1,0)+IF(AD29>AD32,1,0)+IF(AD29>AD33,1,0)+IF(AD29>AD34,1,0)+IF(AD29>AD35,1,0)+IF(AD29>AD36,1,0)+IF(AD29>AD37,1,0)+IF(AD29>AD38,1,0)+1 -> 10 | AC29: Glass, Glassware and Ceramic Ind | AD29: =C30+0.1 -> 0.1 | AE29: 0 | AF29: 0 | AG29: 0 | AH29: 0 | AI29: 0 | AJ29: 0 | AK29: 0 | AL29: 0 | AM29: 0 | AN29: 0 | AO29: 0 | AP29: 0 | AQ29: 0 | AR29: 0 | AS29: 0 | AT29: 0
B30: L) Glass, Glassware and Ceramic Ind | C30: 0 | AB30: =IF(AD30>AD17,1,0)+IF(AD30>AD18,1,0)+IF(AD30>AD19,1,0)+IF(AD30>AD20,1,0)+IF(AD30>AD21,1,0)+IF(AD30>AD22,1,0)+IF(AD30>AD23,1,0)+IF(AD30>AD24,1,0)+IF(AD30>AD25,1,0)+IF(AD30>AD26,1,0)+IF(AD30>AD27,1,0)+IF(AD30>AD28,1,0)+IF(AD30>AD29,1,0)+IF(AD30>AD30,1,0)+IF(AD30>AD31,1,0)+IF(AD30>AD32,1,0)+IF(AD30>AD33,1,0)+IF(AD30>AD34,1,0)+IF(AD30>AD35,1,0)+IF(AD30>AD36,1,0)+IF(AD30>AD37,1,0)+IF(AD30>AD38,1,0)+1 -> 9 | AC30: Ship Manufacturing Industry | AD30: =C31+0.09 -> 0.09 | AE30: 0 | AF30: 0 | AG30: 0 | AH30: 0 | AI30: 0 | AJ30: 0 | AK30: 0 | AL30: 0 | AM30: 0 | AN30: 0 | AO30: 0 | AP30: 0 | AQ30: 0 | AR30: 0 | AS30: 0 | AT30: 0
B31: M) Ship Manufacturing Industry | C31: 0 | AB31: =IF(AD31>AD17,1,0)+IF(AD31>AD18,1,0)+IF(AD31>AD19,1,0)+IF(AD31>AD20,1,0)+IF(AD31>AD21,1,0)+IF(AD31>AD22,1,0)+IF(AD31>AD23,1,0)+IF(AD31>AD24,1,0)+IF(AD31>AD25,1,0)+IF(AD31>AD26,1,0)+IF(AD31>AD27,1,0)+IF(AD31>AD28,1,0)+IF(AD31>AD29,1,0)+IF(AD31>AD30,1,0)+IF(AD31>AD31,1,0)+IF(AD31>AD32,1,0)+IF(AD31>AD33,1,0)+IF(AD31>AD34,1,0)+IF(AD31>AD35,1,0)+IF(AD31>AD36,1,0)+IF(AD31>AD37,1,0)+IF(AD31>AD38,1,0)+1 -> 8 | AC31: Electronics and Electrical Products | AD31: =C32+0.08 -> 0.08 | AE31: 0 | AF31: 0 | AG31: 0 | AH31: 0 | AI31: 0 | AJ31: 0 | AK31: 0 | AL31: 0 | AM31: 0 | AN31: 0 | AO31: 0 | AP31: 0 | AQ31: 0 | AR31: 0 | AS31: 0 | AT31: 0
B32: N) Electronics and Electrical Products | C32: 0 | AB32: =IF(AD32>AD17,1,0)+IF(AD32>AD18,1,0)+IF(AD32>AD19,1,0)+IF(AD32>AD20,1,0)+IF(AD32>AD21,1,0)+IF(AD32>AD22,1,0)+IF(AD32>AD23,1,0)+IF(AD32>AD24,1,0)+IF(AD32>AD25,1,0)+IF(AD32>AD26,1,0)+IF(AD32>AD27,1,0)+IF(AD32>AD28,1,0)+IF(AD32>AD29,1,0)+IF(AD32>AD30,1,0)+IF(AD32>AD31,1,0)+IF(AD32>AD32,1,0)+IF(AD32>AD33,1,0)+IF(AD32>AD34,1,0)+IF(AD32>AD35,1,0)+IF(AD32>AD36,1,0)+IF(AD32>AD37,1,0)+IF(AD32>AD38,1,0)+1 -> 7 | AC32: Power, Gas, Water & Sanitary Service | AD32: =C33+0.07 -> 0.07 | AE32: 0 | AF32: 0 | AG32: 0 | AH32: 0 | AI32: 0 | AJ32: 0 | AK32: 0 | AL32: 0 | AM32: 0 | AN32: 0 | AO32: 0 | AP32: 0 | AQ32: 0 | AR32: 0 | AS32: 0 | AT32: 0
B33: O) Power, Gas, Water & Sanitary Service | C33: 0 | AB33: =IF(AD33>AD17,1,0)+IF(AD33>AD18,1,0)+IF(AD33>AD19,1,0)+IF(AD33>AD20,1,0)+IF(AD33>AD21,1,0)+IF(AD33>AD22,1,0)+IF(AD33>AD23,1,0)+IF(AD33>AD24,1,0)+IF(AD33>AD25,1,0)+IF(AD33>AD26,1,0)+IF(AD33>AD27,1,0)+IF(AD33>AD28,1,0)+IF(AD33>AD29,1,0)+IF(AD33>AD30,1,0)+IF(AD33>AD31,1,0)+IF(AD33>AD32,1,0)+IF(AD33>AD33,1,0)+IF(AD33>AD34,1,0)+IF(AD33>AD35,1,0)+IF(AD33>AD36,1,0)+IF(AD33>AD37,1,0)+IF(AD33>AD38,1,0)+1 -> 6 | AC33: Transport and Aviation | AD33: =C34+0.06 -> 0.06 | AE33: 0 | AF33: 0 | AG33: 0 | AH33: 0 | AI33: 0 | AJ33: 0 | AK33: 0 | AL33: 0 | AM33: 0 | AN33: 0 | AO33: 0 | AP33: 0 | AQ33: 0 | AR33: 0 | AS33: 0 | AT33: 0
B34: P)Transport and Aviation | C34: 0 | AB34: =IF(AD34>AD17,1,0)+IF(AD34>AD18,1,0)+IF(AD34>AD19,1,0)+IF(AD34>AD20,1,0)+IF(AD34>AD21,1,0)+IF(AD34>AD22,1,0)+IF(AD34>AD23,1,0)+IF(AD34>AD24,1,0)+IF(AD34>AD25,1,0)+IF(AD34>AD26,1,0)+IF(AD34>AD27,1,0)+IF(AD34>AD28,1,0)+IF(AD34>AD29,1,0)+IF(AD34>AD30,1,0)+IF(AD34>AD31,1,0)+IF(AD34>AD32,1,0)+IF(AD34>AD33,1,0)+IF(AD34>AD34,1,0)+IF(AD34>AD35,1,0)+IF(AD34>AD36,1,0)+IF(AD34>AD37,1,0)+IF(AD34>AD38,1,0)+1 -> 5 | AC34: Agriculture | AD34: =C36+0.05 -> 0.05 | AE34: =C36 -> 0 | AF34: 0 | AG34: 0 | AH34: 0 | AI34: 0 | AJ34: 0 | AK34: 0 | AL34: 0 | AM34: 0 | AN34: 0 | AO34: 0 | AP34: 0 | AQ34: 0 | AR34: 0 | AS34: 0 | AT34: 0
B35: Industry Total | C35: 0 | D35: =SUM(D19:D34) -> 0 | E35: 0 | F35: 0 | G35: 0 | H35: 0 | I35: 0 | J35: 0 | K35: 0 | L35: 0 | M35: 0 | N35: 0 | O35: 0 | P35: 0 | Q35: 0 | R35: 0 | AB35: =IF(AD35>AD17,1,0)+IF(AD35>AD18,1,0)+IF(AD35>AD19,1,0)+IF(AD35>AD20,1,0)+IF(AD35>AD21,1,0)+IF(AD35>AD22,1,0)+IF(AD35>AD23,1,0)+IF(AD35>AD24,1,0)+IF(AD35>AD25,1,0)+IF(AD35>AD26,1,0)+IF(AD35>AD27,1,0)+IF(AD35>AD28,1,0)+IF(AD35>AD29,1,0)+IF(AD35>AD30,1,0)+IF(AD35>AD31,1,0)+IF(AD35>AD32,1,0)+IF(AD35>AD33,1,0)+IF(AD35>AD34,1,0)+IF(AD35>AD35,1,0)+IF(AD35>AD36,1,0)+IF(AD35>AD37,1,0)+IF(AD35>AD38,1,0)+1 -> 4 | AC35: Housing | AD35: =C37+0.04 -> 0.04 | AE35: 0 | AF35: 0 | AG35: 0 | AH35: 0 | AI35: 0 | AJ35: 0 | AK35: 0 | AL35: 0 | AM35: 0 | AN35: 0 | AO35: 0 | AP35: 0 | AQ35: 0 | AR35: 0 | AS35: 0 | AT35: 0
A36: 3 | B36: Agriculture | C36: 0 | AB36: =IF(AD36>AD17,1,0)+IF(AD36>AD18,1,0)+IF(AD36>AD19,1,0)+IF(AD36>AD20,1,0)+IF(AD36>AD21,1,0)+IF(AD36>AD22,1,0)+IF(AD36>AD23,1,0)+IF(AD36>AD24,1,0)+IF(AD36>AD25,1,0)+IF(AD36>AD26,1,0)+IF(AD36>AD27,1,0)+IF(AD36>AD28,1,0)+IF(AD36>AD29,1,0)+IF(AD36>AD30,1,0)+IF(AD36>AD31,1,0)+IF(AD36>AD32,1,0)+IF(AD36>AD33,1,0)+IF(AD36>AD34,1,0)+IF(AD36>AD35,1,0)+IF(AD36>AD36,1,0)+IF(AD36>AD37,1,0)+IF(AD36>AD38,1,0)+1 -> 3 | AC36: Merchant Banking | AD36: =C39+0.03 -> 0.03 | AE36: =C39 -> 0 | AF36: 0 | AG36: 0 | AH36: 0 | AI36: 0 | AJ36: 0 | AK36: 0 | AL36: 0 | AM36: 0 | AN36: 0 | AO36: 0 | AP36: 0 | AQ36: 0 | AR36: 0 | AS36: 0 | AT36: 0
A37: 4 | B37: Housing | C37: 0 | AB37: =IF(AD37>AD17,1,0)+IF(AD37>AD18,1,0)+IF(AD37>AD19,1,0)+IF(AD37>AD20,1,0)+IF(AD37>AD21,1,0)+IF(AD37>AD22,1,0)+IF(AD37>AD23,1,0)+IF(AD37>AD24,1,0)+IF(AD37>AD25,1,0)+IF(AD37>AD26,1,0)+IF(AD37>AD27,1,0)+IF(AD37>AD28,1,0)+IF(AD37>AD29,1,0)+IF(AD37>AD30,1,0)+IF(AD37>AD31,1,0)+IF(AD37>AD32,1,0)+IF(AD37>AD33,1,0)+IF(AD37>AD34,1,0)+IF(AD37>AD35,1,0)+IF(AD37>AD36,1,0)+IF(AD37>AD37,1,0)+IF(AD37>AD38,1,0)+1 -> 2 | AC37: Margin Loan | AD37: =C40+0.02 -> 0.02 | AE37: =C40 -> 0 | AF37: =D40 -> 0 | AG37: 0 | AH37: 0 | AI37: 0 | AJ37: 0 | AK37: 0 | AL37: 0 | AM37: 0 | AN37: 0 | AO37: 0 | AP37: 0 | AQ37: 0 | AR37: 0 | AS37: 0 | AT37: 0
A38: 5 | B38: Others | AB38: =IF(AD38>AD17,1,0)+IF(AD38>AD18,1,0)+IF(AD38>AD19,1,0)+IF(AD38>AD20,1,0)+IF(AD38>AD21,1,0)+IF(AD38>AD22,1,0)+IF(AD38>AD23,1,0)+IF(AD38>AD24,1,0)+IF(AD38>AD25,1,0)+IF(AD38>AD26,1,0)+IF(AD38>AD27,1,0)+IF(AD38>AD28,1,0)+IF(AD38>AD29,1,0)+IF(AD38>AD30,1,0)+IF(AD38>AD31,1,0)+IF(AD38>AD32,1,0)+IF(AD38>AD33,1,0)+IF(AD38>AD34,1,0)+IF(AD38>AD35,1,0)+IF(AD38>AD36,1,0)+IF(AD38>AD37,1,0)+IF(AD38>AD38,1,0)+1 -> 1 | AC38: Others | AD38: =C41+0.01 -> 0.01 | AE38: =C41 -> 0 | AF38: 0 | AG38: 0 | AH38: 0 | AI38: 0 | AJ38: 0 | AK38: 0 | AL38: 0 | AM38: 0 | AN38: 0 | AO38: 0 | AP38: 0 | AQ38: 0 | AR38: 0 | AS38: 0 | AT38: 0
B39: A) Merchant Banking | C39: =SUM(D39:E39,G39:H39,J39:K39,M39:N39,P39:Q39) -> 0
B40: B) Margin Loan | C40: =SUM(D40:E40,G40:H40,J40:K40,M40:N40,P40:Q40) -> 0
B41: C) Others | C41: =SUM(D41:E41,G41:H41,J41:K41,M41:N41,P41:Q41) -> 0
B42: Others Total | C42: =SUM(D42:E42,G42:H42,J42:K42,M42:N42,P42:Q42) -> 0 | D42: =SUM(D39:D41) -> 0 | E42: 0 | F42: 0 | G42: 0 | H42: 0 | I42: 0 | J42: 0 | K42: 0 | L42: 0 | M42: 0 | N42: 0 | O42: 0 | P42: =SUM(P39:P41) -> 0 | Q42: =SUM(Q39:Q41) -> 0 | R42: =SUM(R39:R41) -> 0
B43: Grand Total | C43: =SUM(D43:E43,G43:H43,J43:K43,M43:N43,P43:Q43) -> 0 | D43: =SUM(D17,D35,D36,D37,D42) -> 0 | E43: 0 | F43: 0 | G43: 0 | H43: 0 | I43: 0 | J43: 0 | K43: 0 | L43: 0 | M43: 0 | N43: 0 | O43: 0 | P43: =SUM(P17,P35,P36,P37,P42) -> 0 | Q43: =SUM(Q17,Q35,Q36,Q37,Q42) -> 0 | R43: =SUM(R17,R35,R36,R37,R42) -> 0
A45: Table: 3 | B45: Top 10 Borrowers STD Loans/Leases
A46: Sl. No | B46: Particulars | C46: Amount in BDT Crore
C47: Total | D47: B1 | E47: B2 | F47: B3 | G47: B4 | H47: B5 | I47: B6 | J47: B7 | K47: B8 | L47: B9 | M47: B10
B48: Total Loans/Leases (Top 10 Borrowers) | C48: =SUM(C49:C50) -> 0 | D48: 0 | E48: 0 | F48: 0 | G48: 0 | H48: 0 | I48: 0 | J48: 0 | K48: 0 | L48: 0 | M48: 0
A49: 1 | B49: Loans/Leases for which Eligible Security is held | C49: =SUM(D49:Q49) -> 0
A50: 2 | B50: Loans/Leases for which Eligible Security is not held | C50: =SUM(D50:Q50) -> 0
A51: 3 | B51: Value of Eligible Security | C51: =SUM(D51:Q51) -> 0
A54: SHOCKS To Be Applied | C54: Increase in NPLs (To B/L) | F54: Downward Shift in All Categories | I54: Fall in ES | L54: Increase of NPLs to B/L of 2 Major Sectors | O54: Increase of NPLs Due to Top 10 Borrowers | R54: Fall in the Value of Share
C55: Minor | D55: Moderate | E55: Major | F55: Minor | G55: Moderate | H55: Major | I55: Minor | J55: Moderate | K55: Major | L55: in 2 Major Sectors | M55: Moderate | N55: Major | O55: Minor | P55: Moderate | Q55: Major | R55: Minor | S55: Moderate | T55: Major
C56: 0.02 | D56: 0.05 | E56: 0.1 | F56: 0.05 | G56: 0.1 | H56: 0.15 | I56: 0.1 | J56: 0.25 | K56: 0.5 | L56: 0.05 | M56: 0.1 | N56: 0.15 | O56: 3 | P56: 5 | Q56: 10 | R56: 0.1 | S56: 0.25 | T56: 0.5
A60: Existing Rate of Provision | C60: STD | D60: SMA | E60: SS | F60: DF | G60: BL
C61: 0.01 | D61: 0.05 | E61: 0.2 | F61: 0.5 | G61: 1
